Department Family,Entity,Payment Date,Expense Type,Expense Area,Supplier,Transaction Number,Amount,Invoice Description,Postal Code,"Admin,Programme or Capital "
Food Standards Agency,Food Standards Agency,31/03/2014,Rent & management charges - AVH,Security & Estates,D T Z,010314,"1,513,314.85",PO 417100 RACK RENT QTR IN ADVANCE 25/03-23/06/14,EC2N 2BQ,Admin
Food Standards Agency,Food Standards Agency,31/03/2014,Rent & management charges - AVH,Security & Estates,D T Z,010314,"302,662.97",PO 417100 RACK RENT QTR IN ADVANCE 25/03-23/06/14,EC2N 2BQ,Admin
Food Standards Agency,Food Standards Agency,06/03/2014,ASD support services,IT Service Delivery,Capita Secure Information Solutions Ltd,93470167,"248,939.57",PO 416806 CORE SERVICE CHARGE FEB 2014,SN14 0TW,Admin
Food Standards Agency,Food Standards Agency,28/03/2014,Programme Evidence & Research Expenditure,Standards Branch,Lincolnshire County Council,90778770,"201,781.20",PO 414927 FEED GRANT 13/14 2ND/FINAL PAYMENT,LN1 1GJ,Programme
Food Standards Agency,Food Standards Agency,27/03/2014,Project Programme expenditure,Standards Branch,"Lancashire County Council, Trading Standards",ERS-31622-47845,"130,835.50","Trading Standards North West Group (Lancashire, - Food Sampling Programme Grant 2nd 60% due March 14.",PR1 8XB,Programme
Food Standards Agency,Food Standards Agency,04/03/2014,Project Programme expenditure,Analysis & Research Branch,C E F A S,8003577,"125,000.00",PO 409508 SERVICES,NR33 0HT,Programme
Food Standards Agency,Food Standards Agency,18/03/2014,Project Programme expenditure,Agricultural Process & Environmental Contaminants & Strategy,Food & Environment Research Agency,F0034872,"113,978.00",PO 416636 STUDY,YO41 1LZ,Programme
Food Standards Agency,Food Standards Agency,26/03/2014,Project Programme expenditure,Standards Branch,Public Analyst Scientific Services,IN14LF000150,"106,413.00",PO 415354 SAMPLING GRANT 2013/14,WV9 5GB,Programme
Food Standards Agency,Food Standards Agency,26/03/2014,Project Programme expenditure,Standards Branch,Public Analyst Scientific Services,IN14WP000168,"103,007.85",PO 415353- FOOD SAMPLING PROGRAMME GRANT,WV9 5GB,Programme
Food Standards Agency,Food Standards Agency,27/03/2014,Project Programme expenditure,Standards Branch,Staffordshire County Council,ERS-31552-47814,"97,750.50",CENTSA (cost code SS548168802 ) - Food Sampling Programme Grant -2nd 60% payment due March 14.,ST16 2NF,Programme
Food Standards Agency,Food Standards Agency,27/03/2014,Project Programme expenditure,Standards Branch,Cornwall Council,ERS-31557-47833,"97,690.10",SWERCOTS (Cornwall) - Food Sampling Programme Grant 2nd 60% due March 14.,PL31 2DQ,Programme
Food Standards Agency,Food Standards Agency,27/03/2014,Project Programme expenditure,Standards Branch,Trading Standards South East Ltd,ERS-31625-47856,"78,580.09",Trading Stds SE - Food Sampling Programme Grant - Final 60% due March 14,KT22 7AH,Programme
Food Standards Agency,Food Standards Agency,04/03/2014,Programme Expense,Food & Feed Monitoring & Policy,C E F A S,8003582,"78,431.00","FS315015, Biotoxins analysis for FSA UK Jan 14",NR33 0HT,Programme
Food Standards Agency,Food Standards Agency,24/03/2014,Programme Expense,Food & Feed Monitoring & Policy,C E F A S,8003633,"68,580.40","FS315015, Bio Toxins Analysis - Feb 14",NR33 0HT,Programme
Food Standards Agency,Food Standards Agency,24/03/2014,Programme Evidence & Research Expenditure,Agricultural Process & Environmental Contaminants & Strategy,Food & Environment Research Agency,F0035085,"63,800.00",PO 417016 PROJECT A2FY1100,YO41 1LZ,Programme
Food Standards Agency,Food Standards Agency,27/03/2014,Project Programme expenditure,Standards Branch,East of England trading Standards,ERS-31553-47836,"60,457.95","EETSA (, Suffolk TS) - Food Sampling Programme Grant -2nd 60% due March 14.",IP1 5PF,Programme
Food Standards Agency,Food Standards Agency,28/03/2014,Programme Evidence & Research Expenditure,Allergens,Imperial College,0078163,"58,500.00",PO 412390 DELIVERABLE 6,SW7 2AZ,Programme
Food Standards Agency,Food Standards Agency,24/03/2014,Legal Expenses incl subscriptions to legal societies,Scotland Admin Costs,The Scottish Government,6023029,"57,928.00",Q4 Legal Expenses,EH6 6QQ,Admin
Food Standards Agency,Food Standards Agency,14/03/2014,Programme Evidence & Research,Healthier Eating and Food Standards,Newcastle University,9100055079,"54,406.80","FS244028, Research (VSTD)",NE1 7RU,Programme
Food Standards Agency,Food Standards Agency,26/03/2014,Redundancy payments,Finance Director & Branch,London Pensions Fund Authority,ER960,"54,003.05",CAPITAL COSTS,EC3N 4LP,Admin
Food Standards Agency,Food Standards Agency,26/03/2014,Fixed Assets Additions,IT Strategy,Capita Secure Information Solutions Ltd,93299442,"53,721.71",PO 414917 FSA 317A CHARGES,SN14 0TW,Capital
Food Standards Agency,Food Standards Agency,27/03/2014,Project Programme expenditure,Standards Branch,Edinburgh Scientific Services,ERS-31584-47848,"51,499.20",Lothian & Borders FLG(Edinburgh Scientifc)  - Food Sampling Programme Grant - 2nd March 60% due March14.,EH6 7LU,Programme
Food Standards Agency,Food Standards Agency,24/03/2014,Programme Expense,Food & Feed Monitoring & Policy,C E F A S,8003637,"50,987.16","FS315022, Phytoplankton Analysis Feb 14",NR33 0HT,Programme
Food Standards Agency,Food Standards Agency,04/03/2014,Programme Expense,Food & Feed Monitoring & Policy,C E F A S,8003579,"50,987.00","FS315016, Chemical Contaminant analysis for FSA UK Jan 14",NR33 0HT,Programme
Food Standards Agency,Food Standards Agency,28/03/2014,Project Programme expenditure,Enforcement Policy,T N S Uk Ltd,260133474,"50,619.00",PO 416152 FSA FHRS COMPONENT SCORES,W5 1UA,Programme
Food Standards Agency,Food Standards Agency,18/03/2014,Project Programme expenditure,Chief Scientist,DEFRA,1000031109,"50,000.00",PO 406986 MISC RECHARGES,YO1 7PX,Programme
Food Standards Agency,Food Standards Agency,18/03/2014,Project Programme expenditure,Chief Scientist,DEFRA,1000031110,"50,000.00",PO 406986 MISC RECHARGES,YO1 7PX,Programme
Food Standards Agency,Food Standards Agency,14/03/2014,Programme Evidence & Research,Healthier Eating and Food Standards,T N S Uk Ltd,260132486,"47,160.00","FS307012, Monitoring Nutrient Composition in Household Food and Drink: Feb report",W5 1UA,Programme
Food Standards Agency,Food Standards Agency,06/03/2014,Programme Evidence & Research Expenditure,Chemical Risk Assessment Unit,University Of Hull,SOIN53066,"44,819.00",PO 400533 DRAFT REPORT,HU6 7RX,Programme
Food Standards Agency,Food Standards Agency,28/03/2014,Programme Evidence & Research Expenditure,Agricultural Process & Environmental Contaminants & Strategy,Food & Environment Research Agency,F0034972,"44,533.00",PO 415386 FS102035 SERVICES,YO41 1LZ,Programme
Food Standards Agency,Food Standards Agency,04/03/2014,Programme Evidence & Research Expenditure,Agricultural Process & Environmental Contaminants & Strategy,Food & Environment Research Agency,F0034680,"43,419.00",PO 412420 SERVICES,YO41 1LZ,Programme
Food Standards Agency,Food Standards Agency,04/03/2014,Project Programme expenditure,Delivery,C E F A S,8003581,"41,183.08",PO 413382 SAMPLES/SERVICES,NR33 0HT,Programme
Food Standards Agency,Food Standards Agency,28/03/2014,Project Programme expenditure,Standards Branch,Public Analyst Scientific Services,IN14WP000202,"40,812.00",PO 415486 FOOD SAMPLING PROGRAMME GRANT 2013/14 - 2ND 60%,WV9 5GB,Programme
Food Standards Agency,Food Standards Agency,27/03/2014,Project Programme expenditure,Standards Branch,Edinburgh Scientific Services,ERS-31585-47849,"39,818.40",N. of Scotland FLG( Edinburgh Scientifc)  - Food Sampling Programme Grant - 2nd 60% due March 14.,EH6 7LU,Programme
Food Standards Agency,Food Standards Agency,24/03/2014,Fixed Assets - In Year Spending,Scotland Admin Costs,Flexiform Business Furniture Ltd,403247,"39,353.00",New chairs for FSAS staff,BD3 7AE,Admin
Food Standards Agency,Food Standards Agency,24/03/2014,Project Programme expenditure,Agricultural Process & Environmental Contaminants & Strategy,Food & Environment Research Agency,F0035024,"38,608.00",PO 416513- PROJECT REF:FS102056,YO41 1LZ,Programme
Food Standards Agency,Food Standards Agency,18/03/2014,Project Programme expenditure,Food Production Branch,DEFRA,1000029965,"37,622.00",PO 408160 DEFRA AGENCY RECHARGE,YO1 7PX,Programme
Food Standards Agency,Food Standards Agency,14/03/2014,Project Programme expenditure,Enforcement Policy,University Of Westminster,9801135,"36,294.00",PO 413615 EVAL FHRS FINAL REPORT,W1W 6UP,Programme
Food Standards Agency,Food Standards Agency,14/03/2014,Programme Evidence & Research,Healthier Eating and Food Standards,Newcastle University,9100055080,"36,271.80","FS244028, Research (VSTD)",NE1 7RU,Programme
Food Standards Agency,Food Standards Agency,18/03/2014,Programme Evidence & Research Expenditure,Chemical Risk Assessment Unit,MRC Human Nutrition Research Unit,MRC13558,"36,000.00",PO 413371 PROJECT REPORT,CB1 9NL,Programme
Food Standards Agency,Food Standards Agency,14/03/2014,Project Programme expenditure,Enforcement Policy,Gfk NOP Ltd,8272010139,"35,000.00",PO 416149 SURVEY,SE1 9UL,Programme
Food Standards Agency,Food Standards Agency,14/03/2014,Programme Evidence & Research Expenditure,Microbiological Food Safety Branch,Agri-Food & Biosciences Institute,INV12129,"34,283.00",PO 409040 FS241042,BT9 5PX,Programme
Food Standards Agency,Food Standards Agency,12/03/2014,Programme Expense,Strategic stakeholder and Consumer Engagement,Scottish Rugby Union Plc,8064,"32,500.00","FS324014, Partnership agreement",EH12 5PJ,Programme
Food Standards Agency,Food Standards Agency,12/03/2014,Mobile phone charges,IT Service Delivery,Vodafone Ltd,70957299,"31,810.03",QUARTERLY CHARGES VOICE & DATA FEB 14,RG14 5FF,Admin
Food Standards Agency,Food Standards Agency,12/03/2014,Project Programme expenditure,Delivery,N S F Safety & Quality UK Ltd,5037000,"31,596.64",PO 412781 FEB INVOICES,OX29 8SJ,Programme
Food Standards Agency,Food Standards Agency,27/03/2014,Project Programme expenditure,Standards Branch,City Of York Council,ERS-31564-47797,"30,887.00",YAHTSG (West Yorkshire Joint Services) - Food Sampling Programme Grant 2nd 60% due March 14.,YO1 6GA,Programme
Food Standards Agency,Food Standards Agency,27/03/2014,Project Programme expenditure,Standards Branch,London Borough Of Hillingdon,ERS-31572-47823,"30,865.00",Heathrow Airport - Food Sampling Programme Grant - 2nd 60% due March 2014.,TW6 3UA,Programme
Food Standards Agency,Food Standards Agency,18/03/2014,Project Programme expenditure,Analysis & Research Branch,C E F A S,8003620,"30,505.60",PO 414837 QTR 4,NR33 0HT,Programme
Food Standards Agency,Food Standards Agency,24/03/2014,Programme Evidence & Research Expenditure,Agricultural Process & Environmental Contaminants & Strategy,Food & Environment Research Agency,F0035219,"30,000.00",PO 415384 FERA PROJECT CODE A2FY1300,YO41 1LZ,Programme
Food Standards Agency,Food Standards Agency,24/03/2014,Programme Evidence & Research Expenditure,Agricultural Process & Environmental Contaminants & Strategy,Hall Mark Meat Hygiene Ltd,SI640,"30,000.00",PO 417080 FS102081 STUDY,GL6 9EN,Programme
Food Standards Agency,Food Standards Agency,06/03/2014,Project Programme expenditure,Enforcement Policy,Gfk NOP Ltd,8272010060,"29,520.00",PO 416720 MYSTERY SHOPS/PHONE INTERVIEWS,SE1 9UL,Programme
Food Standards Agency,Food Standards Agency,27/03/2014,Project Programme expenditure,Standards Branch,Neath Port Talbot County Borough Coun,ERS-31589-47805,"29,516.00",Glamorgan Food Grp -Food Sampling Programme Grant - 2nd 60% due March 14.,SA13 1PJ,Programme
Food Standards Agency,Food Standards Agency,26/03/2014,Fixed Assets Additions,IT Strategy,Capita Secure Information Solutions Ltd,93299442,"28,327.57",PO 414917 FSA 317A CHARGES,SN14 0TW,Capital
Food Standards Agency,Food Standards Agency,26/03/2014,Fixed Assets Additions,IT Strategy,Capita Secure Information Solutions Ltd,93299442,"28,327.57",PO 414917 FSA 317A CHARGES,SN14 0TW,Capital
Food Standards Agency,Food Standards Agency,12/03/2014,Utilities,Security & Estates,E D F Energy,EDF0165,"27,885.23",EDF INV 165 - FEB '14,EX1 3UT,Admin
Food Standards Agency,Food Standards Agency,27/03/2014,Project Programme expenditure,Standards Branch,London Borough Of Enfield,ERS-31565-47804,"27,451.20",LB Enfield  - Food Sampling Programme Grant -2nd 60% due March14.,EN1 3XH,Programme
Food Standards Agency,Food Standards Agency,06/03/2014,Programme Evidence & Research Expenditure,Chemical Risk Assessment Unit,University Of Hull,SOIN53067,"27,300.00",PO 400559 FINAL DRAFT REPORT REF T01057FS231018A,HU6 7RX,Programme
Food Standards Agency,Food Standards Agency,27/03/2014,Project Programme expenditure,Standards Branch,Hampshire County Council,ERS-31702-47801,"27,180.00",Hampshire Scientific Service & Kingston Uni  - Food Sampling Programme Grant 1st 40% due October 13.,SO23 8UB,Programme
Food Standards Agency,Food Standards Agency,24/03/2014,Programme Expense,Strategic stakeholder and Consumer Engagement,Scottish Lawn Tennis Federation,57,"27,000.00",FS324014. HHEAPS: Funding for FY 13/14 and FY 2014/15,EH14 1BZ,Programme
Food Standards Agency,Food Standards Agency,12/03/2014,Service charges,Security & Estates,G4s Integrated Services (Uk) Ltd,M15973,"26,578.76",SERVICES,S81 7QF,Admin
Food Standards Agency,Food Standards Agency,14/03/2014,Subscriptions to professional bodies,FSA Operations Director & Support,The Association Of Meat Inspectors,060114,"25,000.00",PO 416941 MEMBERSHIP FOR FSA,GL5 4HQ,Programme
Food Standards Agency,Food Standards Agency,28/03/2014,Project Programme expenditure,Agricultural Process & Environmental Contaminants & Strategy,Food & Environment Research Agency,F0034991,"23,883.00",PO 415947 FS102048 SURVEY,YO41 1LZ,Programme
Food Standards Agency,Food Standards Agency,10/03/2014,ASD support services,Finance Director & Branch,Shared Services Connected Ltd,100000153,"22,787.69",PO 415746 MONTHLY CHARGE,HP2 7AH,Admin
Food Standards Agency,Food Standards Agency,06/03/2014,Laundry,Operational Delivery,Apparelmaster UK Ltd,52824,"22,008.91",PO 413162 REGION 546 SERVICES,PR2 9ZD,Programme
Food Standards Agency,Food Standards Agency,04/03/2014,Project Programme expenditure,Delivery,C E F A S,8003581,"21,913.00",PO 413382 SAMPLES/SERVICES,NR33 0HT,Programme
Food Standards Agency,Food Standards Agency,18/03/2014,Project Programme expenditure,Delivery,C E F A S,8003634,"21,913.00","PO'S 413382, 410792-THE PROVISION OF OFFICIAL SERVICES FOR SHELLFISH  SAMPLE ANALYSIS",NR33 0HT,Programme
Food Standards Agency,Food Standards Agency,24/03/2014,Programme Expense,Food & Feed Monitoring & Policy,C E F A S,8003637,"21,505.00","FS315022, Phytoplankton Analysis Feb 14",NR33 0HT,Programme
Food Standards Agency,Food Standards Agency,26/03/2014,Programme Evidence & Research Expenditure,Standards Branch,Worcestershire Scientific Services,2202042887,"21,484.80",PO 415095 FEED GRANT 2013/14,WR4 9FA,Programme
Food Standards Agency,Food Standards Agency,04/03/2014,Programme Evidence & Research Expenditure,Food Production Branch,C E F A S,8003390,"20,862.80",PO 412335 FINAL REPORT DELIVERABLES,NR33 0HT,Programme
Food Standards Agency,Food Standards Agency,04/03/2014,Programme Expense,Food & Feed Monitoring & Policy,C E F A S,8003579,"19,895.00","FS315016, Chemical Contaminant analysis for FSA UK Jan 14",NR33 0HT,Programme
Food Standards Agency,Food Standards Agency,14/03/2014,Fixed Assets Additions,IT Strategy,Capita Secure Information Solutions Ltd,93475580,"19,750.00",PO 416031 FSA 367 DUAL FACTOR AUTHENTICATION,SN14 0TW,Capital
Food Standards Agency,Food Standards Agency,18/03/2014,Project Programme expenditure,Delivery,C E F A S,8003634,"18,828.08","PO'S 413382, 410792-THE PROVISION OF OFFICIAL SERVICES FOR SHELLFISH  SAMPLE ANALYSIS",NR33 0HT,Programme
Food Standards Agency,Food Standards Agency,12/03/2014,Security,Security & Estates,G4s Integrated Services (Uk) Ltd,M15973,"17,497.76",SERVICES,S81 7QF,Admin
Food Standards Agency,Food Standards Agency,12/03/2014,Service charges,Security & Estates,G4s Integrated Services (Uk) Ltd,M15973,"16,051.21",SERVICES,S81 7QF,Admin
Food Standards Agency,Food Standards Agency,26/03/2014,Fixed Assets Additions,IT Strategy,Capita Secure Information Solutions Ltd,93299442,"11,729.72",PO 414917 FSA 317A CHARGES,SN14 0TW,Capital
Food Standards Agency,Food Standards Agency,26/03/2014,Fixed Assets Additions,IT Strategy,Capita Secure Information Solutions Ltd,93299442,"10,744.34",PO 414917 FSA 317A CHARGES,SN14 0TW,Capital
Food Standards Agency,Food Standards Agency,14/03/2014,Fixed Assets Additions,IT Strategy,Capita Secure Information Solutions Ltd,93475580,"10,500.00",PO 416031 FSA 367 DUAL FACTOR AUTHENTICATION,SN14 0TW,Capital
Food Standards Agency,Food Standards Agency,04/03/2014,Project Programme expenditure,Delivery,C E F A S,8003581,"10,434.00",PO 413382 SAMPLES/SERVICES,NR33 0HT,Programme
Food Standards Agency,Food Standards Agency,26/03/2014,Programme Evidence & Research Expenditure,Standards Branch,Worcestershire Scientific Services,2202042887,"9,256.20",PO 415095 FEED GRANT 2013/14,WR4 9FA,Programme
Food Standards Agency,Food Standards Agency,18/03/2014,Project Programme expenditure,Delivery,C E F A S,8003634,"9,102.00","PO'S 413382, 410792-THE PROVISION OF OFFICIAL SERVICES FOR SHELLFISH  SAMPLE ANALYSIS",NR33 0HT,Programme
Food Standards Agency,Food Standards Agency,28/03/2014,Programme Evidence & Research Expenditure,Agricultural Process & Environmental Contaminants & Strategy,Food & Environment Research Agency,F0034972,"8,906.60",PO 415386 FS102035 SERVICES,YO41 1LZ,Programme
Food Standards Agency,Food Standards Agency,26/03/2014,Project Programme expenditure,Animal Feed     ,Actso Ltd,680,"8,225.80",PO 416893 PROJECT MANAGER,SS15 6TH,Programme
Food Standards Agency,Food Standards Agency,06/03/2014,Project Programme expenditure,Animal Feed     ,Actso Ltd,497,"8,225.70",PO 416893 FEED PROJECT MANAGER,SS15 6TH,Programme
Food Standards Agency,Food Standards Agency,24/03/2014,Fixed Assets - In Year Spending,Scotland Admin Costs,Flexiform Business Furniture Ltd,403247,"7,870.60",New chairs for FSAS staff,BD3 7AE,Admin
Food Standards Agency,Food Standards Agency,04/03/2014,Programme Evidence & Research Expenditure,Food Production Branch,C E F A S,8003390,"7,730.20",PO 412335 FINAL REPORT DELIVERABLES,NR33 0HT,Programme
Food Standards Agency,Food Standards Agency,24/03/2014,Programme Expense,Food & Feed Monitoring & Policy,C E F A S,8003637,"7,278.00","FS315022, Phytoplankton Analysis Feb 14",NR33 0HT,Programme
Food Standards Agency,Food Standards Agency,14/03/2014,Programme Evidence & Research Expenditure,Microbiological Food Safety Branch,Agri-Food & Biosciences Institute,INV12129,"6,856.60",PO 409040 FS241042,BT9 5PX,Programme
Food Standards Agency,Food Standards Agency,26/03/2014,Fixed Assets Additions,IT Strategy,Capita Secure Information Solutions Ltd,93299442,"6,805.60",PO 414917 FSA 317A CHARGES,SN14 0TW,Capital
Food Standards Agency,Food Standards Agency,14/03/2014,IT Software Licences,IT Strategy,Capita Secure Information Solutions Ltd,93475580,"6,400.00",PO 416031 FSA 367 DUAL FACTOR AUTHENTICATION,SN14 0TW,Admin
Food Standards Agency,Food Standards Agency,12/03/2014,Mobile phone charges,IT Service Delivery,Vodafone Ltd,70957299,"6,362.01",QUARTERLY CHARGES VOICE & DATA FEB 14,RG14 5FF,Admin
Food Standards Agency,Food Standards Agency,26/03/2014,Fixed Assets Additions,IT Strategy,Capita Secure Information Solutions Ltd,93299442,"5,665.51",PO 414917 FSA 317A CHARGES,SN14 0TW,Capital
Food Standards Agency,Food Standards Agency,12/03/2014,Utilities,Security & Estates,E D F Energy,EDF0165,"5,577.05",EDF INV 165 - FEB '14,EX1 3UT,Admin
Food Standards Agency,Food Standards Agency,06/03/2014,Project Programme expenditure,Animal Feed     ,Actso Ltd,497,"5,483.80",PO 416893 FEED PROJECT MANAGER,SS15 6TH,Programme
Food Standards Agency,Food Standards Agency,06/03/2014,Project Programme expenditure,Animal Feed     ,Actso Ltd,497,"5,483.80",PO 416893 FEED PROJECT MANAGER,SS15 6TH,Programme
Food Standards Agency,Food Standards Agency,06/03/2014,Project Programme expenditure,Animal Feed     ,Actso Ltd,497,"5,483.80",PO 416893 FEED PROJECT MANAGER,SS15 6TH,Programme
Food Standards Agency,Food Standards Agency,26/03/2014,Project Programme expenditure,Animal Feed     ,Actso Ltd,680,"5,483.80",PO 416893 PROJECT MANAGER,SS15 6TH,Programme
Food Standards Agency,Food Standards Agency,26/03/2014,Project Programme expenditure,Animal Feed     ,Actso Ltd,680,"5,483.80",PO 416893 PROJECT MANAGER,SS15 6TH,Programme
Food Standards Agency,Food Standards Agency,26/03/2014,Project Programme expenditure,Animal Feed     ,Actso Ltd,680,"5,483.80",PO 416893 PROJECT MANAGER,SS15 6TH,Programme
Food Standards Agency,Food Standards Agency,28/03/2014,Project Programme expenditure,Agricultural Process & Environmental Contaminants & Strategy,Food & Environment Research Agency,F0034991,"4,776.60",PO 415947 FS102048 SURVEY,YO41 1LZ,Programme
Food Standards Agency,Food Standards Agency,14/03/2014,Fixed Assets Additions,IT Strategy,Capita Secure Information Solutions Ltd,93475580,"3,950.00",PO 416031 FSA 367 DUAL FACTOR AUTHENTICATION,SN14 0TW,Capital
Food Standards Agency,Food Standards Agency,18/03/2014,Travel UK ,Operational Delivery,Redfern Travel Ltd,076093,"3,590.34",CONSOLIDATED TRAVEL CHARGES wk 10,BD1 3AZ,Programme
Food Standards Agency,Food Standards Agency,18/03/2014,Subsistence UK,Operational Delivery,Redfern Travel Ltd,076093,"2,987.84",CONSOLIDATED TRAVEL CHARGES wk 10,BD1 3AZ,Programme
Food Standards Agency,Food Standards Agency,12/03/2014,Service charges,Security & Estates,G4s Integrated Services (Uk) Ltd,M15973,"2,393.34",SERVICES,S81 7QF,Admin
Food Standards Agency,Food Standards Agency,24/03/2014,Subsistence UK,Animal Feed     ,Redfern Travel Ltd,076261,"2,373.98",CONSOLIDATED TRAVEL CHARGES wk 11,BD1 3AZ,Admin
Food Standards Agency,Food Standards Agency,26/03/2014,Fixed Assets Additions,IT Strategy,Capita Secure Information Solutions Ltd,93299442,"2,345.94",PO 414917 FSA 317A CHARGES,SN14 0TW,Capital
Food Standards Agency,Food Standards Agency,24/03/2014,Subsistence UK,Operational Delivery,Redfern Travel Ltd,076261,"2,290.82",CONSOLIDATED TRAVEL CHARGES wk 11,BD1 3AZ,Programme
Food Standards Agency,Food Standards Agency,24/03/2014,Travel UK ,Operational Delivery,Redfern Travel Ltd,076261,"2,283.19",CONSOLIDATED TRAVEL CHARGES wk 11,BD1 3AZ,Programme
Food Standards Agency,Food Standards Agency,12/03/2014,Travel UK ,Finance Director & Branch,Redfern Travel Ltd,074684,"2,260.63",CONSOLIDATED TRAVEL CHARGES wk 9,BD1 3AZ,Admin
Food Standards Agency,Food Standards Agency,18/03/2014,Travel UK ,Consumer Protection & Commercial Support,Redfern Travel Ltd,076093,"2,258.77",CONSOLIDATED TRAVEL CHARGES wk 10,BD1 3AZ,Admin
Food Standards Agency,Food Standards Agency,18/03/2014,Travel UK ,HR,Redfern Travel Ltd,076093,"2,197.82",CONSOLIDATED TRAVEL CHARGES wk 10,BD1 3AZ,Admin
Food Standards Agency,Food Standards Agency,18/03/2014,Travel UK ,Operations Assurance,Redfern Travel Ltd,076093,"2,178.84",CONSOLIDATED TRAVEL CHARGES wk 10,BD1 3AZ,Programme
Food Standards Agency,Food Standards Agency,14/03/2014,Fixed Assets Additions,IT Strategy,Capita Secure Information Solutions Ltd,93475580,"2,100.00",PO 416031 FSA 367 DUAL FACTOR AUTHENTICATION,SN14 0TW,Capital
Food Standards Agency,Food Standards Agency,24/03/2014,Travel UK ,Consumer Protection & Commercial Support,Redfern Travel Ltd,076261,"2,033.65",CONSOLIDATED TRAVEL CHARGES wk 11,BD1 3AZ,Admin
Food Standards Agency,Food Standards Agency,18/03/2014,Subsistence UK,Operations Assurance,Redfern Travel Ltd,076093,"1,851.19",CONSOLIDATED TRAVEL CHARGES wk 10,BD1 3AZ,Programme
Food Standards Agency,Food Standards Agency,28/03/2014,Travel UK ,Operational Delivery,Redfern Travel Ltd,076606,"1,820.21",CONSOLIDATED TRAVEL CHARGES wk 12,BD1 3AZ,Programme
Food Standards Agency,Food Standards Agency,18/03/2014,Subsistence UK,Operations Assurance - Admin,Redfern Travel Ltd,076093,"1,813.98",CONSOLIDATED TRAVEL CHARGES wk 10,BD1 3AZ,Admin
Food Standards Agency,Food Standards Agency,24/03/2014,Travel UK ,Operations Local Delivery ,Redfern Travel Ltd,076261,"1,794.90",CONSOLIDATED TRAVEL CHARGES wk 11,BD1 3AZ,Admin
Food Standards Agency,Food Standards Agency,28/03/2014,Subsistence UK,Operational Delivery,Redfern Travel Ltd,076606,"1,767.37",CONSOLIDATED TRAVEL CHARGES wk 12,BD1 3AZ,Programme
Food Standards Agency,Food Standards Agency,12/03/2014,Travel UK ,Operational Delivery,Redfern Travel Ltd,074684,"1,691.84",CONSOLIDATED TRAVEL CHARGES wk 9,BD1 3AZ,Programme
Food Standards Agency,Food Standards Agency,26/03/2014,Project Programme expenditure,Animal Feed     ,Actso Ltd,680,"1,645.16",PO 416893 PROJECT MANAGER,SS15 6TH,Programme
Food Standards Agency,Food Standards Agency,06/03/2014,Project Programme expenditure,Animal Feed     ,Actso Ltd,497,"1,645.14",PO 416893 FEED PROJECT MANAGER,SS15 6TH,Programme
Food Standards Agency,Food Standards Agency,12/03/2014,Subsistence UK,Operations Assurance,Redfern Travel Ltd,074684,"1,629.93",CONSOLIDATED TRAVEL CHARGES wk 9,BD1 3AZ,Programme
Food Standards Agency,Food Standards Agency,12/03/2014,Subsistence UK,Operational Delivery,Redfern Travel Ltd,074684,"1,627.18",CONSOLIDATED TRAVEL CHARGES wk 9,BD1 3AZ,Programme
Food Standards Agency,Food Standards Agency,04/03/2014,Programme Expense,Food & Feed Monitoring & Policy,C E F A S,8003579,"1,554.00","FS315016, Chemical Contaminant analysis for FSA UK Jan 14",NR33 0HT,Programme
Food Standards Agency,Food Standards Agency,24/03/2014,Programme Expense,Food & Feed Monitoring & Policy,C E F A S,8003637,"1,554.00","FS315022, Phytoplankton Analysis Feb 14",NR33 0HT,Programme
Food Standards Agency,Food Standards Agency,28/03/2014,Travel UK ,Planning and Performance,Redfern Travel Ltd,076606,"1,525.58",CONSOLIDATED TRAVEL CHARGES wk 12,BD1 3AZ,Admin
Food Standards Agency,Food Standards Agency,24/03/2014,Legal Expenses incl subscriptions to legal societies,Scotland Admin Costs,The Scottish Government,6023029,"1,512.00",Q4 Legal Expenses,EH6 6QQ,Admin
Food Standards Agency,Food Standards Agency,24/03/2014,Travel UK ,Planning and Performance,Redfern Travel Ltd,076261,"1,503.53",CONSOLIDATED TRAVEL CHARGES wk 11,BD1 3AZ,Admin
Food Standards Agency,Food Standards Agency,12/03/2014,Travel UK ,HR,Redfern Travel Ltd,074684,"1,490.27",CONSOLIDATED TRAVEL CHARGES wk 9,BD1 3AZ,Admin
Food Standards Agency,Food Standards Agency,12/03/2014,Travel UK ,Operations Assurance,Redfern Travel Ltd,074684,"1,336.94",CONSOLIDATED TRAVEL CHARGES wk 9,BD1 3AZ,Programme
Food Standards Agency,Food Standards Agency,18/03/2014,Travel UK ,Planning and Performance,Redfern Travel Ltd,076093,"1,307.79",CONSOLIDATED TRAVEL CHARGES wk 10,BD1 3AZ,Admin
Food Standards Agency,Food Standards Agency,14/03/2014,IT Software Licences,IT Strategy,Capita Secure Information Solutions Ltd,93475580,"1,280.00",PO 416031 FSA 367 DUAL FACTOR AUTHENTICATION,SN14 0TW,Admin
Food Standards Agency,Food Standards Agency,24/03/2014,Travel UK ,Finance Director & Branch,Redfern Travel Ltd,076261,"1,275.69",CONSOLIDATED TRAVEL CHARGES wk 11,BD1 3AZ,Admin
Food Standards Agency,Food Standards Agency,12/03/2014,Subsistence UK,Animal Feed     ,Redfern Travel Ltd,074684,"1,210.79",CONSOLIDATED TRAVEL CHARGES wk 9,BD1 3AZ,Admin
Food Standards Agency,Food Standards Agency,24/03/2014,Travel UK ,Operations Assurance,Redfern Travel Ltd,076261,"1,200.55",CONSOLIDATED TRAVEL CHARGES wk 11,BD1 3AZ,Programme
Food Standards Agency,Food Standards Agency,28/03/2014,Travel UK ,Operations Local Delivery ,Redfern Travel Ltd,076606,"1,143.79",CONSOLIDATED TRAVEL CHARGES wk 12,BD1 3AZ,Admin
Food Standards Agency,Food Standards Agency,28/03/2014,Subsistence UK,Non Meat Field Ops,Redfern Travel Ltd,076606,"1,131.60",CONSOLIDATED TRAVEL CHARGES wk 12,BD1 3AZ,Programme
Food Standards Agency,Food Standards Agency,24/03/2014,Subsistence UK,Operations Assurance - Admin,Redfern Travel Ltd,076261,"1,116.60",CONSOLIDATED TRAVEL CHARGES wk 11,BD1 3AZ,Admin
Food Standards Agency,Food Standards Agency,06/03/2014,Project Programme expenditure,Animal Feed     ,Actso Ltd,497,"1,096.76",PO 416893 FEED PROJECT MANAGER,SS15 6TH,Programme
Food Standards Agency,Food Standards Agency,06/03/2014,Project Programme expenditure,Animal Feed     ,Actso Ltd,497,"1,096.76",PO 416893 FEED PROJECT MANAGER,SS15 6TH,Programme
Food Standards Agency,Food Standards Agency,06/03/2014,Project Programme expenditure,Animal Feed     ,Actso Ltd,497,"1,096.76",PO 416893 FEED PROJECT MANAGER,SS15 6TH,Programme
Food Standards Agency,Food Standards Agency,26/03/2014,Project Programme expenditure,Animal Feed     ,Actso Ltd,680,"1,096.76",PO 416893 PROJECT MANAGER,SS15 6TH,Programme
Food Standards Agency,Food Standards Agency,26/03/2014,Project Programme expenditure,Animal Feed     ,Actso Ltd,680,"1,096.76",PO 416893 PROJECT MANAGER,SS15 6TH,Programme
Food Standards Agency,Food Standards Agency,26/03/2014,Project Programme expenditure,Animal Feed     ,Actso Ltd,680,"1,096.76",PO 416893 PROJECT MANAGER,SS15 6TH,Programme
Food Standards Agency,Food Standards Agency,14/03/2014,Fixed Assets Additions,IT Strategy,Capita Secure Information Solutions Ltd,93475580,"1,050.00",PO 416031 FSA 367 DUAL FACTOR AUTHENTICATION,SN14 0TW,Capital
Food Standards Agency,Food Standards Agency,18/03/2014,Travel UK ,Finance Director & Branch,Redfern Travel Ltd,076093,"1,029.00",CONSOLIDATED TRAVEL CHARGES wk 10,BD1 3AZ,Admin
Food Standards Agency,Food Standards Agency,18/03/2014,Travel UK ,Operations Assurance - Admin,Redfern Travel Ltd,076093,"1,014.67",CONSOLIDATED TRAVEL CHARGES wk 10,BD1 3AZ,Admin
Food Standards Agency,Food Standards Agency,28/03/2014,Subsistence UK,Operations Assurance,Redfern Travel Ltd,076606,977.93,CONSOLIDATED TRAVEL CHARGES wk 12,BD1 3AZ,Programme
Food Standards Agency,Food Standards Agency,12/03/2014,Travel UK ,Animal Feed     ,Redfern Travel Ltd,074684,976.32,CONSOLIDATED TRAVEL CHARGES wk 9,BD1 3AZ,Admin
Food Standards Agency,Food Standards Agency,12/03/2014,Subsistence UK,Operations Assurance - Admin,Redfern Travel Ltd,074684,972.06,CONSOLIDATED TRAVEL CHARGES wk 9,BD1 3AZ,Admin
Food Standards Agency,Food Standards Agency,18/03/2014,Subsistence UK,Finance Director & Branch,Redfern Travel Ltd,076093,957.83,CONSOLIDATED TRAVEL CHARGES wk 10,BD1 3AZ,Admin
Food Standards Agency,Food Standards Agency,24/03/2014,Travel UK ,Animal Feed     ,Redfern Travel Ltd,076261,956.91,CONSOLIDATED TRAVEL CHARGES wk 11,BD1 3AZ,Admin
Food Standards Agency,Food Standards Agency,12/03/2014,Travel UK ,Operations Assurance - Admin,Redfern Travel Ltd,074684,953.88,CONSOLIDATED TRAVEL CHARGES wk 9,BD1 3AZ,Admin
Food Standards Agency,Food Standards Agency,18/03/2014,Travel UK ,Comms Directors Office,Redfern Travel Ltd,076093,932.61,CONSOLIDATED TRAVEL CHARGES wk 10,BD1 3AZ,Admin
Food Standards Agency,Food Standards Agency,24/03/2014,Travel UK ,Comms Directors Office,Redfern Travel Ltd,076261,920.03,CONSOLIDATED TRAVEL CHARGES wk 11,BD1 3AZ,Admin
Food Standards Agency,Food Standards Agency,18/03/2014,Subsistence UK,Area 5 South West England - Cluster 57,Redfern Travel Ltd,076093,919.96,CONSOLIDATED TRAVEL CHARGES wk 10,BD1 3AZ,Programme
Food Standards Agency,Food Standards Agency,18/03/2014,Subsistence UK,Non Meat Field Ops,Redfern Travel Ltd,076093,881.90,CONSOLIDATED TRAVEL CHARGES wk 10,BD1 3AZ,Programme
Food Standards Agency,Food Standards Agency,12/03/2014,Subsistence UK,Chief Executive & Private Office,Redfern Travel Ltd,074684,856.68,CONSOLIDATED TRAVEL CHARGES wk 9,BD1 3AZ,Admin
Food Standards Agency,Food Standards Agency,18/03/2014,Travel UK ,Operations Local Delivery ,Redfern Travel Ltd,076093,846.73,CONSOLIDATED TRAVEL CHARGES wk 10,BD1 3AZ,Admin
Food Standards Agency,Food Standards Agency,18/03/2014,Subsistence UK,Operations Local Delivery ,Redfern Travel Ltd,076093,836.16,CONSOLIDATED TRAVEL CHARGES wk 10,BD1 3AZ,Admin
Food Standards Agency,Food Standards Agency,24/03/2014,Subsistence UK,Chief Executive & Private Office,Redfern Travel Ltd,076261,810.80,CONSOLIDATED TRAVEL CHARGES wk 11,BD1 3AZ,Admin
Food Standards Agency,Food Standards Agency,12/03/2014,Travel UK ,Operations Local Delivery ,Redfern Travel Ltd,074684,805.23,CONSOLIDATED TRAVEL CHARGES wk 9,BD1 3AZ,Admin
Food Standards Agency,Food Standards Agency,24/03/2014,Subsistence UK,Planning and Performance,Redfern Travel Ltd,076261,801.82,CONSOLIDATED TRAVEL CHARGES wk 11,BD1 3AZ,Admin
Food Standards Agency,Food Standards Agency,24/03/2014,International Travel,Agricultural Process & Environmental Contaminants & Strategy,Redfern Travel Ltd,076261,767.80,CONSOLIDATED TRAVEL CHARGES wk 11,BD1 3AZ,Admin
Food Standards Agency,Food Standards Agency,28/03/2014,Subsistence UK,Chief Executive & Private Office,Redfern Travel Ltd,076606,767.35,CONSOLIDATED TRAVEL CHARGES wk 12,BD1 3AZ,Admin
Food Standards Agency,Food Standards Agency,24/03/2014,Travel UK ,Operations Assurance - Admin,Redfern Travel Ltd,076261,764.03,CONSOLIDATED TRAVEL CHARGES wk 11,BD1 3AZ,Admin
Food Standards Agency,Food Standards Agency,12/03/2014,Travel UK ,Planning and Performance,Redfern Travel Ltd,074684,757.13,CONSOLIDATED TRAVEL CHARGES wk 9,BD1 3AZ,Admin
Food Standards Agency,Food Standards Agency,24/03/2014,Travel UK ,IT Information & Knowledge Management,Redfern Travel Ltd,076261,752.30,CONSOLIDATED TRAVEL CHARGES wk 11,BD1 3AZ,Admin
Food Standards Agency,Food Standards Agency,18/03/2014,Travel UK ,Animal Feed     ,Redfern Travel Ltd,076093,746.97,CONSOLIDATED TRAVEL CHARGES wk 10,BD1 3AZ,Admin
Food Standards Agency,Food Standards Agency,24/03/2014,Subsistence UK,Operations Assurance,Redfern Travel Ltd,076261,745.60,CONSOLIDATED TRAVEL CHARGES wk 11,BD1 3AZ,Programme
Food Standards Agency,Food Standards Agency,12/03/2014,Subsistence UK,Comms Directors Office,Redfern Travel Ltd,074684,717.33,CONSOLIDATED TRAVEL CHARGES wk 9,BD1 3AZ,Admin
Food Standards Agency,Food Standards Agency,28/03/2014,Travel UK ,HR,Redfern Travel Ltd,076606,694.98,CONSOLIDATED TRAVEL CHARGES wk 12,BD1 3AZ,Admin
Food Standards Agency,Food Standards Agency,24/03/2014,Subsistence UK,Analysis & Research Branch,Redfern Travel Ltd,076261,681.04,CONSOLIDATED TRAVEL CHARGES wk 11,BD1 3AZ,Admin
Food Standards Agency,Food Standards Agency,28/03/2014,International Travel,Food Hygiene Policy Branch,Redfern Travel Ltd,076606,659.70,CONSOLIDATED TRAVEL CHARGES wk 12,BD1 3AZ,Admin
Food Standards Agency,Food Standards Agency,18/03/2014,Travel UK ,Animal Feed Branch,Redfern Travel Ltd,076093,649.05,CONSOLIDATED TRAVEL CHARGES wk 10,BD1 3AZ,Admin
Food Standards Agency,Food Standards Agency,24/03/2014,Subsistence UK,Procurement,Redfern Travel Ltd,076261,642.79,CONSOLIDATED TRAVEL CHARGES wk 11,BD1 3AZ,Admin
Food Standards Agency,Food Standards Agency,28/03/2014,Subsistence UK,Animal Feed     ,Redfern Travel Ltd,076606,614.76,CONSOLIDATED TRAVEL CHARGES wk 12,BD1 3AZ,Admin
Food Standards Agency,Food Standards Agency,12/03/2014,Travel UK ,Consumer Protection & Commercial Support,Redfern Travel Ltd,074684,605.88,CONSOLIDATED TRAVEL CHARGES wk 9,BD1 3AZ,Admin
Food Standards Agency,Food Standards Agency,18/03/2014,Subsistence UK,Comms Directors Office,Redfern Travel Ltd,076093,582.46,CONSOLIDATED TRAVEL CHARGES wk 10,BD1 3AZ,Admin
Food Standards Agency,Food Standards Agency,18/03/2014,Subsistence UK,Planning and Performance,Redfern Travel Ltd,076093,566.89,CONSOLIDATED TRAVEL CHARGES wk 10,BD1 3AZ,Admin
Food Standards Agency,Food Standards Agency,28/03/2014,International Subsistence,Hygiene & Microbiology Division HoD,Redfern Travel Ltd,076606,556.81,CONSOLIDATED TRAVEL CHARGES wk 12,BD1 3AZ,Admin
Food Standards Agency,Food Standards Agency,28/03/2014,Subsistence - EC,Animal Feed Branch,Redfern Travel Ltd,076606,550.30,CONSOLIDATED TRAVEL CHARGES wk 12,BD1 3AZ,Admin
Food Standards Agency,Food Standards Agency,18/03/2014,International Travel,Animal Feed Branch,Redfern Travel Ltd,076093,538.15,CONSOLIDATED TRAVEL CHARGES wk 10,BD1 3AZ,Admin
Food Standards Agency,Food Standards Agency,18/03/2014,Subsistence UK,Animal Feed     ,Redfern Travel Ltd,076093,537.64,CONSOLIDATED TRAVEL CHARGES wk 10,BD1 3AZ,Admin
Food Standards Agency,Food Standards Agency,12/03/2014,Subsistence UK,Operations Local Delivery ,Redfern Travel Ltd,074684,535.80,CONSOLIDATED TRAVEL CHARGES wk 9,BD1 3AZ,Admin
Food Standards Agency,Food Standards Agency,18/03/2014,Travel UK ,Non Meat Field Ops,Redfern Travel Ltd,076093,535.47,CONSOLIDATED TRAVEL CHARGES wk 10,BD1 3AZ,Programme
Food Standards Agency,Food Standards Agency,24/03/2014,Travel UK ,Procurement,Redfern Travel Ltd,076261,533.77,CONSOLIDATED TRAVEL CHARGES wk 11,BD1 3AZ,Admin
Food Standards Agency,Food Standards Agency,24/03/2014,Subsistence UK,Novel Food Unit,Redfern Travel Ltd,076261,530.08,CONSOLIDATED TRAVEL CHARGES wk 11,BD1 3AZ,Admin
Food Standards Agency,Food Standards Agency,18/03/2014,Travel UK ,EU Regulatory Reform Branch,Redfern Travel Ltd,076093,524.15,CONSOLIDATED TRAVEL CHARGES wk 10,BD1 3AZ,Admin
Food Standards Agency,Food Standards Agency,24/03/2014,Travel UK ,Analysis & Research Branch,Redfern Travel Ltd,076261,521.81,CONSOLIDATED TRAVEL CHARGES wk 11,BD1 3AZ,Admin
Food Standards Agency,Food Standards Agency,24/03/2014,Subsistence - EC,Area 5 South West England - Cluster 57,Redfern Travel Ltd,076261,513.22,CONSOLIDATED TRAVEL CHARGES wk 11,BD1 3AZ,Programme
Food Standards Agency,Food Standards Agency,12/03/2014,Subsistence UK,Planning and Performance,Redfern Travel Ltd,074684,508.94,CONSOLIDATED TRAVEL CHARGES wk 9,BD1 3AZ,Admin
Food Standards Agency,Food Standards Agency,18/03/2014,Subsistence UK,Area 5 South West England - Cluster 55,Redfern Travel Ltd,076093,504.68,CONSOLIDATED TRAVEL CHARGES wk 10,BD1 3AZ,Programme
Food Standards Agency,Food Standards Agency,12/03/2014,Office machinery: hire,Security & Estates,G4s Integrated Services (Uk) Ltd,M15973,500.00,SERVICES,S81 7QF,Admin
Food Standards Agency,Food Standards Agency,28/03/2014,Subsistence UK,FSA Board,Redfern Travel Ltd,076606,499.48,CONSOLIDATED TRAVEL CHARGES wk 12,BD1 3AZ,Admin
Food Standards Agency,Food Standards Agency,24/03/2014,Travel UK ,Area 6 South East England - Cluster 63,Redfern Travel Ltd,076261,495.20,CONSOLIDATED TRAVEL CHARGES wk 11,BD1 3AZ,Programme
Food Standards Agency,Food Standards Agency,18/03/2014,Travel UK ,Procurement,Redfern Travel Ltd,076093,486.10,CONSOLIDATED TRAVEL CHARGES wk 10,BD1 3AZ,Admin
Food Standards Agency,Food Standards Agency,12/03/2014,Travel UK ,Comms Directors Office,Redfern Travel Ltd,074684,476.44,CONSOLIDATED TRAVEL CHARGES wk 9,BD1 3AZ,Admin
Food Standards Agency,Food Standards Agency,18/03/2014,Subsistence UK,Chemical Risk Assessment Unit,Redfern Travel Ltd,076093,472.12,CONSOLIDATED TRAVEL CHARGES wk 10,BD1 3AZ,Admin
Food Standards Agency,Food Standards Agency,28/03/2014,Travel UK ,Operations Assurance,Redfern Travel Ltd,076606,454.86,CONSOLIDATED TRAVEL CHARGES wk 12,BD1 3AZ,Programme
Food Standards Agency,Food Standards Agency,28/03/2014,Subsistence UK,Operations Local Delivery ,Redfern Travel Ltd,076606,450.38,CONSOLIDATED TRAVEL CHARGES wk 12,BD1 3AZ,Admin
Food Standards Agency,Food Standards Agency,24/03/2014,Subsistence UK,Operations Local Delivery ,Redfern Travel Ltd,076261,447.36,CONSOLIDATED TRAVEL CHARGES wk 11,BD1 3AZ,Admin
Food Standards Agency,Food Standards Agency,28/03/2014,Subsistence UK,Comms Directors Office,Redfern Travel Ltd,076606,446.12,CONSOLIDATED TRAVEL CHARGES wk 12,BD1 3AZ,Admin
Food Standards Agency,Food Standards Agency,24/03/2014,Subsistence UK,Area 6 South East England - Cluster 63,Redfern Travel Ltd,076261,439.12,CONSOLIDATED TRAVEL CHARGES wk 11,BD1 3AZ,Programme
Food Standards Agency,Food Standards Agency,28/03/2014,Travel UK ,Procurement,Redfern Travel Ltd,076606,437.78,CONSOLIDATED TRAVEL CHARGES wk 12,BD1 3AZ,Admin
Food Standards Agency,Food Standards Agency,24/03/2014,Travel UK ,HR,Redfern Travel Ltd,076261,437.53,CONSOLIDATED TRAVEL CHARGES wk 11,BD1 3AZ,Admin
Food Standards Agency,Food Standards Agency,12/03/2014,Subsistence UK,Area 5 South West England - Cluster 57,Redfern Travel Ltd,074684,430.28,CONSOLIDATED TRAVEL CHARGES wk 9,BD1 3AZ,Programme
Food Standards Agency,Food Standards Agency,12/03/2014,Travel UK ,Area 6 South East England - Cluster 63,Redfern Travel Ltd,074684,423.90,CONSOLIDATED TRAVEL CHARGES wk 9,BD1 3AZ,Programme
Food Standards Agency,Food Standards Agency,28/03/2014,Travel UK ,Security & Estates,Redfern Travel Ltd,076606,420.21,CONSOLIDATED TRAVEL CHARGES wk 12,BD1 3AZ,Admin
Food Standards Agency,Food Standards Agency,18/03/2014,Subsistence - EC,Better Regulations & Sustainable Development,Redfern Travel Ltd,076093,418.23,CONSOLIDATED TRAVEL CHARGES wk 10,BD1 3AZ,Admin
Food Standards Agency,Food Standards Agency,12/03/2014,Travel UK ,Analysis & Research Branch,Redfern Travel Ltd,074684,413.21,CONSOLIDATED TRAVEL CHARGES wk 9,BD1 3AZ,Admin
Food Standards Agency,Food Standards Agency,18/03/2014,Subsistence UK,Internal Audit,Redfern Travel Ltd,076093,410.20,CONSOLIDATED TRAVEL CHARGES wk 10,BD1 3AZ,Admin
Food Standards Agency,Food Standards Agency,12/03/2014,Subsistence UK,Investigations,Redfern Travel Ltd,074684,408.33,CONSOLIDATED TRAVEL CHARGES wk 9,BD1 3AZ,Admin
Food Standards Agency,Food Standards Agency,12/03/2014,Travel UK ,Area 1 Scotland - Cluster 11,Redfern Travel Ltd,074684,407.04,CONSOLIDATED TRAVEL CHARGES wk 9,BD1 3AZ,Programme
Food Standards Agency,Food Standards Agency,18/03/2014,Travel UK ,IT HoD,Redfern Travel Ltd,076093,400.04,CONSOLIDATED TRAVEL CHARGES wk 10,BD1 3AZ,Admin
Food Standards Agency,Food Standards Agency,12/03/2014,Subsistence UK,Area 6 South East England - Cluster 63,Redfern Travel Ltd,074684,394.76,CONSOLIDATED TRAVEL CHARGES wk 9,BD1 3AZ,Programme
Food Standards Agency,Food Standards Agency,12/03/2014,Subsistence UK,Area 6 South East England - Cluster 64,Redfern Travel Ltd,074684,388.74,CONSOLIDATED TRAVEL CHARGES wk 9,BD1 3AZ,Programme
Food Standards Agency,Food Standards Agency,12/03/2014,Subsistence - EC,Food Hygiene Policy Branch,Redfern Travel Ltd,074684,386.78,CONSOLIDATED TRAVEL CHARGES wk 9,BD1 3AZ,Admin
Food Standards Agency,Food Standards Agency,28/03/2014,Subsistence UK,Agricultural Process & Environmental Contaminants & Strategy,Redfern Travel Ltd,076606,380.14,CONSOLIDATED TRAVEL CHARGES wk 12,BD1 3AZ,Admin
Food Standards Agency,Food Standards Agency,24/03/2014,Travel UK ,Chair & Deputy Chair,Redfern Travel Ltd,076261,378.98,CONSOLIDATED TRAVEL CHARGES wk 11,BD1 3AZ,Admin
Food Standards Agency,Food Standards Agency,28/03/2014,Subsistence - EC,Allergens,Redfern Travel Ltd,076606,375.48,CONSOLIDATED TRAVEL CHARGES wk 12,BD1 3AZ,Admin
Food Standards Agency,Food Standards Agency,28/03/2014,Subsistence - EC,Food Policy Private Office,Redfern Travel Ltd,076606,375.48,CONSOLIDATED TRAVEL CHARGES wk 12,BD1 3AZ,Admin
Food Standards Agency,Food Standards Agency,18/03/2014,Subsistence - EC,Analysis & Research Branch,Redfern Travel Ltd,076093,369.92,CONSOLIDATED TRAVEL CHARGES wk 10,BD1 3AZ,Admin
Food Standards Agency,Food Standards Agency,12/03/2014,Travel UK ,Internal Audit,Redfern Travel Ltd,074684,367.22,CONSOLIDATED TRAVEL CHARGES wk 9,BD1 3AZ,Admin
Food Standards Agency,Food Standards Agency,24/03/2014,Travel UK ,FSA Board,Redfern Travel Ltd,076261,366.61,CONSOLIDATED TRAVEL CHARGES wk 11,BD1 3AZ,Admin
Food Standards Agency,Food Standards Agency,28/03/2014,Subsistence - EC,Analysis & Research Branch,Redfern Travel Ltd,076606,361.46,CONSOLIDATED TRAVEL CHARGES wk 12,BD1 3AZ,Admin
Food Standards Agency,Food Standards Agency,12/03/2014,Subsistence UK,Finance Director & Branch,Redfern Travel Ltd,074684,356.76,CONSOLIDATED TRAVEL CHARGES wk 9,BD1 3AZ,Admin
Food Standards Agency,Food Standards Agency,12/03/2014,Travel UK ,Area 5 South West England - Cluster 57,Redfern Travel Ltd,074684,355.83,CONSOLIDATED TRAVEL CHARGES wk 9,BD1 3AZ,Programme
Food Standards Agency,Food Standards Agency,24/03/2014,Travel UK ,Animal Feed Branch,Redfern Travel Ltd,076261,353.10,CONSOLIDATED TRAVEL CHARGES wk 11,BD1 3AZ,Admin
Food Standards Agency,Food Standards Agency,28/03/2014,Travel UK ,Area 6 South East England - Cluster 63,Redfern Travel Ltd,076606,351.31,CONSOLIDATED TRAVEL CHARGES wk 12,BD1 3AZ,Programme
Food Standards Agency,Food Standards Agency,24/03/2014,Subsistence UK,Area 1 Scotland - Cluster 11,Redfern Travel Ltd,076261,350.90,CONSOLIDATED TRAVEL CHARGES wk 11,BD1 3AZ,Programme
Food Standards Agency,Food Standards Agency,24/03/2014,Subsistence UK,Non Meat Field Ops,Redfern Travel Ltd,076261,347.47,CONSOLIDATED TRAVEL CHARGES wk 11,BD1 3AZ,Programme
Food Standards Agency,Food Standards Agency,28/03/2014,Subsistence UK,HR,Redfern Travel Ltd,076606,345.85,CONSOLIDATED TRAVEL CHARGES wk 12,BD1 3AZ,Admin
Food Standards Agency,Food Standards Agency,18/03/2014,Travel UK ,Operations Local Delivery ,Redfern Travel Ltd,076093,344.12,CONSOLIDATED TRAVEL CHARGES wk 10,BD1 3AZ,Admin
Food Standards Agency,Food Standards Agency,28/03/2014,Travel UK ,Operations Assurance - Admin,Redfern Travel Ltd,076606,343.86,CONSOLIDATED TRAVEL CHARGES wk 12,BD1 3AZ,Admin
Food Standards Agency,Food Standards Agency,24/03/2014,Subsistence UK,Area 5 South West England - Cluster 57,Redfern Travel Ltd,076261,343.28,CONSOLIDATED TRAVEL CHARGES wk 11,BD1 3AZ,Programme
Food Standards Agency,Food Standards Agency,28/03/2014,International Travel,Agricultural Process & Environmental Contaminants & Strategy,Redfern Travel Ltd,076606,342.37,CONSOLIDATED TRAVEL CHARGES wk 12,BD1 3AZ,Admin
Food Standards Agency,Food Standards Agency,28/03/2014,Travel UK ,Area 6 South East England - Cluster 66,Redfern Travel Ltd,076606,338.62,CONSOLIDATED TRAVEL CHARGES wk 12,BD1 3AZ,Programme
Food Standards Agency,Food Standards Agency,12/03/2014,Travel UK ,Allergens,Redfern Travel Ltd,074684,335.31,CONSOLIDATED TRAVEL CHARGES wk 9,BD1 3AZ,Admin
Food Standards Agency,Food Standards Agency,18/03/2014,Subsistence UK,HR,Redfern Travel Ltd,076093,335.16,CONSOLIDATED TRAVEL CHARGES wk 10,BD1 3AZ,Admin
Food Standards Agency,Food Standards Agency,24/03/2014,Subsistence UK,Animal Feed Branch,Redfern Travel Ltd,076261,333.12,CONSOLIDATED TRAVEL CHARGES wk 11,BD1 3AZ,Admin
Food Standards Agency,Food Standards Agency,24/03/2014,Subsistence UK,HR,Redfern Travel Ltd,076261,330.78,CONSOLIDATED TRAVEL CHARGES wk 11,BD1 3AZ,Admin
Food Standards Agency,Food Standards Agency,12/03/2014,Subsistence UK,Procurement,Redfern Travel Ltd,074684,330.46,CONSOLIDATED TRAVEL CHARGES wk 9,BD1 3AZ,Admin
Food Standards Agency,Food Standards Agency,18/03/2014,International Travel,Official Feed & Foods Controls Policy Unit,Redfern Travel Ltd,076093,329.90,CONSOLIDATED TRAVEL CHARGES wk 10,BD1 3AZ,Admin
Food Standards Agency,Food Standards Agency,24/03/2014,Subsistence UK,Security & Estates,Redfern Travel Ltd,076261,326.90,CONSOLIDATED TRAVEL CHARGES wk 11,BD1 3AZ,Admin
Food Standards Agency,Food Standards Agency,12/03/2014,International Travel,Novel Food Unit,Redfern Travel Ltd,074684,326.80,CONSOLIDATED TRAVEL CHARGES wk 9,BD1 3AZ,Admin
Food Standards Agency,Food Standards Agency,12/03/2014,International Travel,Food Hygiene Policy Branch,Redfern Travel Ltd,074684,326.80,CONSOLIDATED TRAVEL CHARGES wk 9,BD1 3AZ,Admin
Food Standards Agency,Food Standards Agency,28/03/2014,Subsistence UK,Planning and Performance,Redfern Travel Ltd,076606,325.78,CONSOLIDATED TRAVEL CHARGES wk 12,BD1 3AZ,Admin
Food Standards Agency,Food Standards Agency,18/03/2014,Travel UK ,Area 5 South West England - Cluster 51,Redfern Travel Ltd,076093,321.54,CONSOLIDATED TRAVEL CHARGES wk 10,BD1 3AZ,Programme
Food Standards Agency,Food Standards Agency,24/03/2014,Travel UK ,Internal Audit,Redfern Travel Ltd,076261,316.94,CONSOLIDATED TRAVEL CHARGES wk 11,BD1 3AZ,Admin
Food Standards Agency,Food Standards Agency,24/03/2014,Subsistence UK,Finance Director & Branch,Redfern Travel Ltd,076261,316.89,CONSOLIDATED TRAVEL CHARGES wk 11,BD1 3AZ,Admin
Food Standards Agency,Food Standards Agency,28/03/2014,Subsistence - EC,Chemical Risk Assessment Unit,Redfern Travel Ltd,076606,315.84,CONSOLIDATED TRAVEL CHARGES wk 12,BD1 3AZ,Admin
Food Standards Agency,Food Standards Agency,28/03/2014,Travel UK ,Area 6 South East England - Cluster 62,Redfern Travel Ltd,076606,314.98,CONSOLIDATED TRAVEL CHARGES wk 12,BD1 3AZ,Programme
Food Standards Agency,Food Standards Agency,24/03/2014,Travel UK ,Area 5 South West England - Cluster 57,Redfern Travel Ltd,076261,309.96,CONSOLIDATED TRAVEL CHARGES wk 11,BD1 3AZ,Programme
Food Standards Agency,Food Standards Agency,28/03/2014,International Travel,Official Feed & Foods Controls Policy Unit,Redfern Travel Ltd,076606,309.90,CONSOLIDATED TRAVEL CHARGES wk 12,BD1 3AZ,Admin
Food Standards Agency,Food Standards Agency,28/03/2014,Travel UK ,Animal Feed     ,Redfern Travel Ltd,076606,308.53,CONSOLIDATED TRAVEL CHARGES wk 12,BD1 3AZ,Admin
Food Standards Agency,Food Standards Agency,24/03/2014,Subsistence UK,Internal Audit,Redfern Travel Ltd,076261,305.76,CONSOLIDATED TRAVEL CHARGES wk 11,BD1 3AZ,Admin
Food Standards Agency,Food Standards Agency,18/03/2014,Subsistence UK,Standards Branch,Redfern Travel Ltd,076093,304.95,CONSOLIDATED TRAVEL CHARGES wk 10,BD1 3AZ,Admin
Food Standards Agency,Food Standards Agency,12/03/2014,Subsistence UK,Non Meat Field Ops,Redfern Travel Ltd,074684,304.68,CONSOLIDATED TRAVEL CHARGES wk 9,BD1 3AZ,Programme
Food Standards Agency,Food Standards Agency,18/03/2014,Subsistence UK,Animal Feed Branch,Redfern Travel Ltd,076093,303.12,CONSOLIDATED TRAVEL CHARGES wk 10,BD1 3AZ,Admin
Food Standards Agency,Food Standards Agency,24/03/2014,Travel UK ,Chief Executive & Private Office,Redfern Travel Ltd,076261,299.61,CONSOLIDATED TRAVEL CHARGES wk 11,BD1 3AZ,Admin
Food Standards Agency,Food Standards Agency,12/03/2014,Subsistence UK,Area 4 North East England - Cluster 46,Redfern Travel Ltd,074684,293.96,CONSOLIDATED TRAVEL CHARGES wk 9,BD1 3AZ,Programme
Food Standards Agency,Food Standards Agency,28/03/2014,Travel UK ,Analysis & Research Branch,Redfern Travel Ltd,076606,293.85,CONSOLIDATED TRAVEL CHARGES wk 12,BD1 3AZ,Admin
Food Standards Agency,Food Standards Agency,28/03/2014,Subsistence UK,Investigations,Redfern Travel Ltd,076606,291.93,CONSOLIDATED TRAVEL CHARGES wk 12,BD1 3AZ,Admin
Food Standards Agency,Food Standards Agency,18/03/2014,Travel UK ,Chair & Deputy Chair,Redfern Travel Ltd,076093,290.24,CONSOLIDATED TRAVEL CHARGES wk 10,BD1 3AZ,Admin
Food Standards Agency,Food Standards Agency,24/03/2014,Subsistence UK,Investigations,Redfern Travel Ltd,076261,286.00,CONSOLIDATED TRAVEL CHARGES wk 11,BD1 3AZ,Admin
Food Standards Agency,Food Standards Agency,12/03/2014,Subsistence UK,Consumer Protection & Commercial Support,Redfern Travel Ltd,074684,282.93,CONSOLIDATED TRAVEL CHARGES wk 9,BD1 3AZ,Admin
Food Standards Agency,Food Standards Agency,18/03/2014,Subsistence UK,Area 1 Scotland - Cluster 13,Redfern Travel Ltd,076093,282.12,CONSOLIDATED TRAVEL CHARGES wk 10,BD1 3AZ,Programme
Food Standards Agency,Food Standards Agency,12/03/2014,Subsistence - EC,Novel Food Unit,Redfern Travel Ltd,074684,280.81,CONSOLIDATED TRAVEL CHARGES wk 9,BD1 3AZ,Admin
Food Standards Agency,Food Standards Agency,12/03/2014,Travel UK ,Area 1 Scotland - Cluster 13,Redfern Travel Ltd,074684,279.84,CONSOLIDATED TRAVEL CHARGES wk 9,BD1 3AZ,Programme
Food Standards Agency,Food Standards Agency,12/03/2014,Subsistence - EC,Official Feed & Foods Controls Policy Unit,Redfern Travel Ltd,074684,279.29,CONSOLIDATED TRAVEL CHARGES wk 9,BD1 3AZ,Admin
Food Standards Agency,Food Standards Agency,28/03/2014,Subsistence - EC,Additives,Redfern Travel Ltd,076606,277.95,CONSOLIDATED TRAVEL CHARGES wk 12,BD1 3AZ,Admin
Food Standards Agency,Food Standards Agency,18/03/2014,Travel UK ,Area 4 North East England - Cluster 48,Redfern Travel Ltd,076093,277.89,CONSOLIDATED TRAVEL CHARGES wk 10,BD1 3AZ,Programme
Food Standards Agency,Food Standards Agency,18/03/2014,Travel UK ,Procurement,Redfern Travel Ltd,076093,275.27,CONSOLIDATED TRAVEL CHARGES wk 10,BD1 3AZ,Admin
Food Standards Agency,Food Standards Agency,12/03/2014,Travel UK ,Procurement,Redfern Travel Ltd,074684,274.43,CONSOLIDATED TRAVEL CHARGES wk 9,BD1 3AZ,Admin
Food Standards Agency,Food Standards Agency,18/03/2014,Subsistence - EC,Additives,Redfern Travel Ltd,076093,269.15,CONSOLIDATED TRAVEL CHARGES wk 10,BD1 3AZ,Admin
Food Standards Agency,Food Standards Agency,28/03/2014,Travel UK ,Finance Director & Branch,Redfern Travel Ltd,076606,266.58,CONSOLIDATED TRAVEL CHARGES wk 12,BD1 3AZ,Admin
Food Standards Agency,Food Standards Agency,28/03/2014,Subsistence UK,Procurement,Redfern Travel Ltd,076606,264.90,CONSOLIDATED TRAVEL CHARGES wk 12,BD1 3AZ,Admin
Food Standards Agency,Food Standards Agency,18/03/2014,Travel UK ,Legal Branch A,Redfern Travel Ltd,076093,263.86,CONSOLIDATED TRAVEL CHARGES wk 10,BD1 3AZ,Admin
Food Standards Agency,Food Standards Agency,28/03/2014,Travel UK ,Meat & Hygiene & TSE Policy Branch,Redfern Travel Ltd,076606,263.61,CONSOLIDATED TRAVEL CHARGES wk 12,BD1 3AZ,Admin
Food Standards Agency,Food Standards Agency,24/03/2014,Subsistence UK,Microbiological Food Safety Branch,Redfern Travel Ltd,076261,263.12,CONSOLIDATED TRAVEL CHARGES wk 11,BD1 3AZ,Admin
Food Standards Agency,Food Standards Agency,12/03/2014,Subsistence UK,Chair & Deputy Chair,Redfern Travel Ltd,074684,261.55,CONSOLIDATED TRAVEL CHARGES wk 9,BD1 3AZ,Admin
Food Standards Agency,Food Standards Agency,18/03/2014,Travel UK ,Area 1 Scotland - Cluster 12,Redfern Travel Ltd,076093,259.60,CONSOLIDATED TRAVEL CHARGES wk 10,BD1 3AZ,Programme
Food Standards Agency,Food Standards Agency,28/03/2014,Travel UK ,Area 6 South East England - Cluster 65,Redfern Travel Ltd,076606,259.23,CONSOLIDATED TRAVEL CHARGES wk 12,BD1 3AZ,Programme
Food Standards Agency,Food Standards Agency,12/03/2014,Subsistence UK,Area 2 Wales - Cluster 23,Redfern Travel Ltd,074684,258.12,CONSOLIDATED TRAVEL CHARGES wk 9,BD1 3AZ,Programme
Food Standards Agency,Food Standards Agency,12/03/2014,Travel UK ,Chief Executive & Private Office,Redfern Travel Ltd,074684,257.57,CONSOLIDATED TRAVEL CHARGES wk 9,BD1 3AZ,Admin
Food Standards Agency,Food Standards Agency,28/03/2014,Subsistence - EC,Chief Scientist,Redfern Travel Ltd,076606,257.18,CONSOLIDATED TRAVEL CHARGES wk 12,BD1 3AZ,Admin
Food Standards Agency,Food Standards Agency,24/03/2014,Subsistence UK,IT Information & Knowledge Management,Redfern Travel Ltd,076261,254.72,CONSOLIDATED TRAVEL CHARGES wk 11,BD1 3AZ,Admin
Food Standards Agency,Food Standards Agency,12/03/2014,Subsistence UK,EU Regulatory Reform Branch,Redfern Travel Ltd,074684,253.11,CONSOLIDATED TRAVEL CHARGES wk 9,BD1 3AZ,Admin
Food Standards Agency,Food Standards Agency,12/03/2014,Subsistence UK,HR,Redfern Travel Ltd,074684,252.00,CONSOLIDATED TRAVEL CHARGES wk 9,BD1 3AZ,Admin
Food Standards Agency,Food Standards Agency,12/03/2014,Travel UK ,Area 3 North West England - Cluster 32,Redfern Travel Ltd,074684,250.69,CONSOLIDATED TRAVEL CHARGES wk 9,BD1 3AZ,Programme
Food Standards Agency,Food Standards Agency,28/03/2014,Subsistence UK,Operations Assurance - Admin,Redfern Travel Ltd,076606,250.62,CONSOLIDATED TRAVEL CHARGES wk 12,BD1 3AZ,Admin
Food Standards Agency,Food Standards Agency,24/03/2014,Travel UK ,Procurement,Redfern Travel Ltd,076261,246.04,CONSOLIDATED TRAVEL CHARGES wk 11,BD1 3AZ,Admin
Food Standards Agency,Food Standards Agency,18/03/2014,Subsistence UK,Area 2 Wales - Cluster 22,Redfern Travel Ltd,076093,244.68,CONSOLIDATED TRAVEL CHARGES wk 10,BD1 3AZ,Programme
Food Standards Agency,Food Standards Agency,18/03/2014,Travel UK ,Area 5 South West England - Cluster 54,Redfern Travel Ltd,076093,244.28,CONSOLIDATED TRAVEL CHARGES wk 10,BD1 3AZ,Programme
Food Standards Agency,Food Standards Agency,24/03/2014,Travel UK ,Security & Estates,Redfern Travel Ltd,076261,241.89,CONSOLIDATED TRAVEL CHARGES wk 11,BD1 3AZ,Admin
Food Standards Agency,Food Standards Agency,24/03/2014,Travel UK ,Area 4 North East England - Cluster 46,Redfern Travel Ltd,076261,239.19,CONSOLIDATED TRAVEL CHARGES wk 11,BD1 3AZ,Programme
Food Standards Agency,Food Standards Agency,24/03/2014,Subsistence UK,Standards Branch,Redfern Travel Ltd,076261,239.17,CONSOLIDATED TRAVEL CHARGES wk 11,BD1 3AZ,Admin
Food Standards Agency,Food Standards Agency,24/03/2014,Subsistence UK,Legal Branch A,Redfern Travel Ltd,076261,238.84,CONSOLIDATED TRAVEL CHARGES wk 11,BD1 3AZ,Admin
Food Standards Agency,Food Standards Agency,18/03/2014,Travel UK ,Area 4 North East England - Cluster 46,Redfern Travel Ltd,076093,238.41,CONSOLIDATED TRAVEL CHARGES wk 10,BD1 3AZ,Programme
Food Standards Agency,Food Standards Agency,12/03/2014,International Travel,Radiation & Residues,Redfern Travel Ltd,074684,234.33,CONSOLIDATED TRAVEL CHARGES wk 9,BD1 3AZ,Admin
Food Standards Agency,Food Standards Agency,12/03/2014,Travel UK ,Non Meat Field Ops,Redfern Travel Ltd,074684,233.67,CONSOLIDATED TRAVEL CHARGES wk 9,BD1 3AZ,Programme
Food Standards Agency,Food Standards Agency,12/03/2014,Travel UK ,Area 5 South West England - Cluster 56,Redfern Travel Ltd,074684,229.45,CONSOLIDATED TRAVEL CHARGES wk 9,BD1 3AZ,Programme
Food Standards Agency,Food Standards Agency,24/03/2014,Travel UK ,Area 5 South West England - Cluster 55,Redfern Travel Ltd,076261,228.19,CONSOLIDATED TRAVEL CHARGES wk 11,BD1 3AZ,Programme
Food Standards Agency,Food Standards Agency,28/03/2014,Travel UK ,Comms Directors Office,Redfern Travel Ltd,076606,227.58,CONSOLIDATED TRAVEL CHARGES wk 12,BD1 3AZ,Admin
Food Standards Agency,Food Standards Agency,18/03/2014,Subsistence UK,Area 3 North West England - Cluster 31,Redfern Travel Ltd,076093,224.64,CONSOLIDATED TRAVEL CHARGES wk 10,BD1 3AZ,Programme
Food Standards Agency,Food Standards Agency,12/03/2014,Subsistence UK,Area 5 South West England - Cluster 54,Redfern Travel Ltd,074684,219.96,CONSOLIDATED TRAVEL CHARGES wk 9,BD1 3AZ,Programme
Food Standards Agency,Food Standards Agency,28/03/2014,Travel UK ,Area 6 South East England - Cluster 64,Redfern Travel Ltd,076606,219.30,CONSOLIDATED TRAVEL CHARGES wk 12,BD1 3AZ,Programme
Food Standards Agency,Food Standards Agency,12/03/2014,Travel UK ,Food Policy Private Office,Redfern Travel Ltd,074684,218.67,CONSOLIDATED TRAVEL CHARGES wk 9,BD1 3AZ,Admin
Food Standards Agency,Food Standards Agency,18/03/2014,Subsistence UK,Area 4 North East England - Cluster 46,Redfern Travel Ltd,076093,218.40,CONSOLIDATED TRAVEL CHARGES wk 10,BD1 3AZ,Programme
Food Standards Agency,Food Standards Agency,12/03/2014,Travel UK ,Procurement,Redfern Travel Ltd,074684,218.30,CONSOLIDATED TRAVEL CHARGES wk 9,BD1 3AZ,Admin
Food Standards Agency,Food Standards Agency,18/03/2014,Travel UK ,Area 6 South East England - Cluster 63,Redfern Travel Ltd,076093,216.94,CONSOLIDATED TRAVEL CHARGES wk 10,BD1 3AZ,Programme
Food Standards Agency,Food Standards Agency,12/03/2014,Subsistence UK,Area 4 North East England - Cluster 44,Redfern Travel Ltd,074684,216.84,CONSOLIDATED TRAVEL CHARGES wk 9,BD1 3AZ,Programme
Food Standards Agency,Food Standards Agency,28/03/2014,Travel UK ,Area 2 Wales - Cluster 21,Redfern Travel Ltd,076606,214.74,CONSOLIDATED TRAVEL CHARGES wk 12,BD1 3AZ,Programme
Food Standards Agency,Food Standards Agency,12/03/2014,Travel UK ,Chair & Deputy Chair,Redfern Travel Ltd,074684,213.53,CONSOLIDATED TRAVEL CHARGES wk 9,BD1 3AZ,Admin
Food Standards Agency,Food Standards Agency,18/03/2014,Travel UK ,Area 6 South East England - Cluster 64,Redfern Travel Ltd,076093,213.43,CONSOLIDATED TRAVEL CHARGES wk 10,BD1 3AZ,Programme
Food Standards Agency,Food Standards Agency,24/03/2014,Travel UK ,Area 6 South East England - Cluster 65,Redfern Travel Ltd,076261,211.60,CONSOLIDATED TRAVEL CHARGES wk 11,BD1 3AZ,Programme
Food Standards Agency,Food Standards Agency,28/03/2014,Subsistence - EC,Agricultural Process & Environmental Contaminants & Strategy,Redfern Travel Ltd,076606,210.78,CONSOLIDATED TRAVEL CHARGES wk 12,BD1 3AZ,Admin
Food Standards Agency,Food Standards Agency,28/03/2014,Travel UK ,Allergens,Redfern Travel Ltd,076606,210.19,CONSOLIDATED TRAVEL CHARGES wk 12,BD1 3AZ,Admin
Food Standards Agency,Food Standards Agency,24/03/2014,Subsistence UK,Area 2 Wales - Cluster 23,Redfern Travel Ltd,076261,210.12,CONSOLIDATED TRAVEL CHARGES wk 11,BD1 3AZ,Programme
Food Standards Agency,Food Standards Agency,12/03/2014,Subsistence UK,Area 4 North East England - Cluster 41,Redfern Travel Ltd,074684,210.12,CONSOLIDATED TRAVEL CHARGES wk 9,BD1 3AZ,Programme
Food Standards Agency,Food Standards Agency,14/03/2014,Fixed Assets Additions,IT Strategy,Capita Secure Information Solutions Ltd,93475580,210.00,PO 416031 FSA 367 DUAL FACTOR AUTHENTICATION,SN14 0TW,Capital
Food Standards Agency,Food Standards Agency,12/03/2014,Subsistence UK,Area 5 South West England - Cluster 55,Redfern Travel Ltd,074684,209.80,CONSOLIDATED TRAVEL CHARGES wk 9,BD1 3AZ,Programme
Food Standards Agency,Food Standards Agency,24/03/2014,Travel UK ,Area 5 South West England - Cluster 53,Redfern Travel Ltd,076261,208.98,CONSOLIDATED TRAVEL CHARGES wk 11,BD1 3AZ,Programme
Food Standards Agency,Food Standards Agency,28/03/2014,Travel UK ,Food Policy Private Office,Redfern Travel Ltd,076606,207.22,CONSOLIDATED TRAVEL CHARGES wk 12,BD1 3AZ,Admin
Food Standards Agency,Food Standards Agency,24/03/2014,Travel UK ,Area 1 Scotland - Cluster 12,Redfern Travel Ltd,076261,206.35,CONSOLIDATED TRAVEL CHARGES wk 11,BD1 3AZ,Programme
Food Standards Agency,Food Standards Agency,24/03/2014,International Travel,Novel Food Unit,Redfern Travel Ltd,076261,205.90,CONSOLIDATED TRAVEL CHARGES wk 11,BD1 3AZ,Admin
Food Standards Agency,Food Standards Agency,24/03/2014,International Travel,Foodborne Diseases Branch,Redfern Travel Ltd,076261,205.61,CONSOLIDATED TRAVEL CHARGES wk 11,BD1 3AZ,Admin
Food Standards Agency,Food Standards Agency,18/03/2014,Travel UK ,Chief Scientist,Redfern Travel Ltd,076093,205.42,CONSOLIDATED TRAVEL CHARGES wk 10,BD1 3AZ,Admin
Food Standards Agency,Food Standards Agency,24/03/2014,Travel UK ,Area 2 Wales - Cluster 21,Redfern Travel Ltd,076261,201.61,CONSOLIDATED TRAVEL CHARGES wk 11,BD1 3AZ,Programme
Food Standards Agency,Food Standards Agency,24/03/2014,Subsistence UK,Area 4 North East England - Cluster 46,Redfern Travel Ltd,076261,199.88,CONSOLIDATED TRAVEL CHARGES wk 11,BD1 3AZ,Programme
Food Standards Agency,Food Standards Agency,18/03/2014,Subsistence UK,Area 6 South East England - Cluster 66,Redfern Travel Ltd,076093,198.89,CONSOLIDATED TRAVEL CHARGES wk 10,BD1 3AZ,Programme
Food Standards Agency,Food Standards Agency,12/03/2014,International Travel,Operations Local Delivery ,Redfern Travel Ltd,074684,196.95,CONSOLIDATED TRAVEL CHARGES wk 9,BD1 3AZ,Admin
Food Standards Agency,Food Standards Agency,12/03/2014,International Travel,Food Hygiene Policy Branch,Redfern Travel Ltd,074684,196.95,CONSOLIDATED TRAVEL CHARGES wk 9,BD1 3AZ,Admin
Food Standards Agency,Food Standards Agency,24/03/2014,Travel UK ,Area 4 North East England - Cluster 44,Redfern Travel Ltd,076261,195.12,CONSOLIDATED TRAVEL CHARGES wk 11,BD1 3AZ,Programme
Food Standards Agency,Food Standards Agency,28/03/2014,Travel UK ,Area 5 South West England - Cluster 51,Redfern Travel Ltd,076606,191.52,CONSOLIDATED TRAVEL CHARGES wk 12,BD1 3AZ,Programme
Food Standards Agency,Food Standards Agency,24/03/2014,Travel UK ,Radiation & Residues,Redfern Travel Ltd,076261,189.58,CONSOLIDATED TRAVEL CHARGES wk 11,BD1 3AZ,Admin
Food Standards Agency,Food Standards Agency,28/03/2014,Travel UK ,Consumer Protection & Commercial Support,Redfern Travel Ltd,076606,185.93,CONSOLIDATED TRAVEL CHARGES wk 12,BD1 3AZ,Admin
Food Standards Agency,Food Standards Agency,12/03/2014,Travel UK ,Area 1 Scotland - Cluster 15,Redfern Travel Ltd,074684,185.17,CONSOLIDATED TRAVEL CHARGES wk 9,BD1 3AZ,Programme
Food Standards Agency,Food Standards Agency,28/03/2014,Subsistence UK,Area 2 Wales - Cluster 23,Redfern Travel Ltd,076606,184.09,CONSOLIDATED TRAVEL CHARGES wk 12,BD1 3AZ,Programme
Food Standards Agency,Food Standards Agency,28/03/2014,Travel UK ,Agricultural Process & Environmental Contaminants & Strategy,Redfern Travel Ltd,076606,183.64,CONSOLIDATED TRAVEL CHARGES wk 12,BD1 3AZ,Admin
Food Standards Agency,Food Standards Agency,18/03/2014,Subsistence UK,Microbiological Food Safety Branch,Redfern Travel Ltd,076093,183.12,CONSOLIDATED TRAVEL CHARGES wk 10,BD1 3AZ,Admin
Food Standards Agency,Food Standards Agency,28/03/2014,Travel UK ,IT Information & Knowledge Management,Redfern Travel Ltd,076606,181.79,CONSOLIDATED TRAVEL CHARGES wk 12,BD1 3AZ,Admin
Food Standards Agency,Food Standards Agency,28/03/2014,Subsistence UK,Foodborne Diseases Branch,Redfern Travel Ltd,076606,181.56,CONSOLIDATED TRAVEL CHARGES wk 12,BD1 3AZ,Admin
Food Standards Agency,Food Standards Agency,28/03/2014,Travel UK ,Procurement,Redfern Travel Ltd,076606,181.28,CONSOLIDATED TRAVEL CHARGES wk 12,BD1 3AZ,Admin
Food Standards Agency,Food Standards Agency,24/03/2014,International Travel,Analysis & Research Branch,Redfern Travel Ltd,076261,180.90,CONSOLIDATED TRAVEL CHARGES wk 11,BD1 3AZ,Admin
Food Standards Agency,Food Standards Agency,18/03/2014,International Travel,Additives,Redfern Travel Ltd,076093,180.90,CONSOLIDATED TRAVEL CHARGES wk 10,BD1 3AZ,Admin
Food Standards Agency,Food Standards Agency,24/03/2014,International Travel,Hygiene & Microbiology Division HoD,Redfern Travel Ltd,076261,180.61,CONSOLIDATED TRAVEL CHARGES wk 11,BD1 3AZ,Admin
Food Standards Agency,Food Standards Agency,18/03/2014,Travel UK ,Internal Audit,Redfern Travel Ltd,076093,179.70,CONSOLIDATED TRAVEL CHARGES wk 10,BD1 3AZ,Admin
Food Standards Agency,Food Standards Agency,12/03/2014,International Travel,Non Meat Field Ops,Redfern Travel Ltd,074684,178.80,CONSOLIDATED TRAVEL CHARGES wk 9,BD1 3AZ,Programme
Food Standards Agency,Food Standards Agency,18/03/2014,Subsistence UK,Area 6 South East England - Cluster 63,Redfern Travel Ltd,076093,177.56,CONSOLIDATED TRAVEL CHARGES wk 10,BD1 3AZ,Programme
Food Standards Agency,Food Standards Agency,12/03/2014,Subsistence UK,Food Policy Private Office,Redfern Travel Ltd,074684,175.56,CONSOLIDATED TRAVEL CHARGES wk 9,BD1 3AZ,Admin
Food Standards Agency,Food Standards Agency,18/03/2014,Subsistence UK,Food Policy Private Office,Redfern Travel Ltd,076093,175.56,CONSOLIDATED TRAVEL CHARGES wk 10,BD1 3AZ,Admin
Food Standards Agency,Food Standards Agency,18/03/2014,Travel UK ,Analysis & Research Branch,Redfern Travel Ltd,076093,174.15,CONSOLIDATED TRAVEL CHARGES wk 10,BD1 3AZ,Admin
Food Standards Agency,Food Standards Agency,24/03/2014,Subsistence UK,Area 5 South West England - Cluster 55,Redfern Travel Ltd,076261,172.56,CONSOLIDATED TRAVEL CHARGES wk 11,BD1 3AZ,Programme
Food Standards Agency,Food Standards Agency,24/03/2014,Subsistence UK,Comms Directors Office,Redfern Travel Ltd,076261,171.77,CONSOLIDATED TRAVEL CHARGES wk 11,BD1 3AZ,Admin
Food Standards Agency,Food Standards Agency,28/03/2014,Subsistence UK,Area 5 South West England - Cluster 52,Redfern Travel Ltd,076606,171.56,CONSOLIDATED TRAVEL CHARGES wk 12,BD1 3AZ,Programme
Food Standards Agency,Food Standards Agency,12/03/2014,Mobile phone charges,IT Service Delivery,Vodafone Ltd,70957299,171.54,QUARTERLY CHARGES VOICE & DATA FEB 14,RG14 5FF,Admin
Food Standards Agency,Food Standards Agency,12/03/2014,Subsistence - EC,Procurement,Redfern Travel Ltd,074684,170.06,CONSOLIDATED TRAVEL CHARGES wk 9,BD1 3AZ,Admin
Food Standards Agency,Food Standards Agency,12/03/2014,International Travel,Additives,Redfern Travel Ltd,074684,165.90,CONSOLIDATED TRAVEL CHARGES wk 9,BD1 3AZ,Admin
Food Standards Agency,Food Standards Agency,18/03/2014,Travel UK ,Radiation & Residues,Redfern Travel Ltd,076093,165.07,CONSOLIDATED TRAVEL CHARGES wk 10,BD1 3AZ,Admin
Food Standards Agency,Food Standards Agency,28/03/2014,Subsistence UK,Internal Audit,Redfern Travel Ltd,076606,164.68,CONSOLIDATED TRAVEL CHARGES wk 12,BD1 3AZ,Admin
Food Standards Agency,Food Standards Agency,24/03/2014,Subsistence UK,Area 4 North East England - Cluster 41,Redfern Travel Ltd,076261,163.92,CONSOLIDATED TRAVEL CHARGES wk 11,BD1 3AZ,Programme
Food Standards Agency,Food Standards Agency,12/03/2014,Subsistence UK,Area 3 North West England - Cluster 33,Redfern Travel Ltd,074684,163.12,CONSOLIDATED TRAVEL CHARGES wk 9,BD1 3AZ,Programme
Food Standards Agency,Food Standards Agency,18/03/2014,Subsistence UK,Area 3 North West England - Cluster 33,Redfern Travel Ltd,076093,163.12,CONSOLIDATED TRAVEL CHARGES wk 10,BD1 3AZ,Programme
Food Standards Agency,Food Standards Agency,18/03/2014,Subsistence UK,Area 2 Wales - Cluster 23,Redfern Travel Ltd,076093,162.88,CONSOLIDATED TRAVEL CHARGES wk 10,BD1 3AZ,Programme
Food Standards Agency,Food Standards Agency,18/03/2014,Travel UK ,Agricultural Process & Environmental Contaminants & Strategy,Redfern Travel Ltd,076093,162.36,CONSOLIDATED TRAVEL CHARGES wk 10,BD1 3AZ,Admin
Food Standards Agency,Food Standards Agency,24/03/2014,Subsistence UK,Area 1 Scotland - Cluster 13,Redfern Travel Ltd,076261,162.10,CONSOLIDATED TRAVEL CHARGES wk 11,BD1 3AZ,Programme
Food Standards Agency,Food Standards Agency,28/03/2014,International Travel,IT HoD,Redfern Travel Ltd,076606,160.90,CONSOLIDATED TRAVEL CHARGES wk 12,BD1 3AZ,Admin
Food Standards Agency,Food Standards Agency,12/03/2014,Subsistence UK,Area 3 North West England - Cluster 31,Redfern Travel Ltd,074684,160.68,CONSOLIDATED TRAVEL CHARGES wk 9,BD1 3AZ,Programme
Food Standards Agency,Food Standards Agency,24/03/2014,Subsistence UK,Area 4 North East England - Cluster 48,Redfern Travel Ltd,076261,159.92,CONSOLIDATED TRAVEL CHARGES wk 11,BD1 3AZ,Programme
Food Standards Agency,Food Standards Agency,18/03/2014,Subsistence UK,Area 2 Wales - Cluster 21,Redfern Travel Ltd,076093,159.12,CONSOLIDATED TRAVEL CHARGES wk 10,BD1 3AZ,Programme
Food Standards Agency,Food Standards Agency,12/03/2014,Subsistence UK,Area 4 North East England - Cluster 45,Redfern Travel Ltd,074684,157.56,CONSOLIDATED TRAVEL CHARGES wk 9,BD1 3AZ,Programme
Food Standards Agency,Food Standards Agency,28/03/2014,Travel EC - Other Travel,Investigations,Redfern Travel Ltd,076606,157.42,CONSOLIDATED TRAVEL CHARGES wk 12,BD1 3AZ,Admin
Food Standards Agency,Food Standards Agency,18/03/2014,Subsistence UK,Consumer Protection & Commercial Support,Redfern Travel Ltd,076093,156.52,CONSOLIDATED TRAVEL CHARGES wk 10,BD1 3AZ,Admin
Food Standards Agency,Food Standards Agency,24/03/2014,Travel UK ,Food Hygiene Policy Branch,Redfern Travel Ltd,076261,155.60,CONSOLIDATED TRAVEL CHARGES wk 11,BD1 3AZ,Admin
Food Standards Agency,Food Standards Agency,18/03/2014,International Travel,Consumer Protection & Commercial Support,Redfern Travel Ltd,076093,155.52,CONSOLIDATED TRAVEL CHARGES wk 10,BD1 3AZ,Admin
Food Standards Agency,Food Standards Agency,28/03/2014,Travel UK ,Area 1 Scotland - Cluster 13,Redfern Travel Ltd,076606,155.23,CONSOLIDATED TRAVEL CHARGES wk 12,BD1 3AZ,Programme
Food Standards Agency,Food Standards Agency,24/03/2014,Travel UK ,Non Meat Field Ops,Redfern Travel Ltd,076261,154.72,CONSOLIDATED TRAVEL CHARGES wk 11,BD1 3AZ,Programme
Food Standards Agency,Food Standards Agency,28/03/2014,Travel UK ,Chief Executive & Private Office,Redfern Travel Ltd,076606,153.96,CONSOLIDATED TRAVEL CHARGES wk 12,BD1 3AZ,Admin
Food Standards Agency,Food Standards Agency,24/03/2014,Travel UK ,Meat & Hygiene & TSE Policy Branch,Redfern Travel Ltd,076261,153.70,CONSOLIDATED TRAVEL CHARGES wk 11,BD1 3AZ,Admin
Food Standards Agency,Food Standards Agency,12/03/2014,Subsistence UK,Area 3 North West England - Cluster 34,Redfern Travel Ltd,074684,152.88,CONSOLIDATED TRAVEL CHARGES wk 9,BD1 3AZ,Programme
Food Standards Agency,Food Standards Agency,12/03/2014,Subsistence UK,Area 3 North West England - Cluster 35,Redfern Travel Ltd,074684,152.88,CONSOLIDATED TRAVEL CHARGES wk 9,BD1 3AZ,Programme
Food Standards Agency,Food Standards Agency,12/03/2014,Subsistence UK,Area 1 Scotland - Cluster 11,Redfern Travel Ltd,074684,152.42,CONSOLIDATED TRAVEL CHARGES wk 9,BD1 3AZ,Programme
Food Standards Agency,Food Standards Agency,12/03/2014,Travel UK ,IT Information & Knowledge Management,Redfern Travel Ltd,074684,152.15,CONSOLIDATED TRAVEL CHARGES wk 9,BD1 3AZ,Admin
Food Standards Agency,Food Standards Agency,18/03/2014,Travel UK ,Area 6 South East England - Cluster 66,Redfern Travel Ltd,076093,151.95,CONSOLIDATED TRAVEL CHARGES wk 10,BD1 3AZ,Programme
Food Standards Agency,Food Standards Agency,28/03/2014,Subsistence UK,Area 2 Wales - Cluster 21,Redfern Travel Ltd,076606,151.62,CONSOLIDATED TRAVEL CHARGES wk 12,BD1 3AZ,Programme
Food Standards Agency,Food Standards Agency,28/03/2014,Subsistence UK,Area 6 South East England - Cluster 64,Redfern Travel Ltd,076606,151.54,CONSOLIDATED TRAVEL CHARGES wk 12,BD1 3AZ,Programme
Food Standards Agency,Food Standards Agency,28/03/2014,Travel UK ,IT HoD,Redfern Travel Ltd,076606,150.60,CONSOLIDATED TRAVEL CHARGES wk 12,BD1 3AZ,Admin
Food Standards Agency,Food Standards Agency,12/03/2014,Travel UK ,Area 5 South West England - Cluster 52,Redfern Travel Ltd,074684,150.49,CONSOLIDATED TRAVEL CHARGES wk 9,BD1 3AZ,Programme
Food Standards Agency,Food Standards Agency,24/03/2014,Subsistence UK,Official Controls & Enforcement Strategy,Redfern Travel Ltd,076261,150.02,CONSOLIDATED TRAVEL CHARGES wk 11,BD1 3AZ,Admin
Food Standards Agency,Food Standards Agency,12/03/2014,Car hire expenses (short term),Operations Assurance,Redfern Travel Ltd,074684,149.56,CONSOLIDATED TRAVEL CHARGES wk 9,BD1 3AZ,Programme
Food Standards Agency,Food Standards Agency,28/03/2014,Travel UK ,Area 4 North East England - Cluster 44,Redfern Travel Ltd,076606,149.31,CONSOLIDATED TRAVEL CHARGES wk 12,BD1 3AZ,Programme
Food Standards Agency,Food Standards Agency,24/03/2014,Subsistence UK,Area 4 North East England - Cluster 44,Redfern Travel Ltd,076261,148.20,CONSOLIDATED TRAVEL CHARGES wk 11,BD1 3AZ,Programme
Food Standards Agency,Food Standards Agency,12/03/2014,Subsistence UK,Area 4 North East England - Cluster 42,Redfern Travel Ltd,074684,146.64,CONSOLIDATED TRAVEL CHARGES wk 9,BD1 3AZ,Programme
Food Standards Agency,Food Standards Agency,18/03/2014,Subsistence UK,Area 4 North East England - Cluster 42,Redfern Travel Ltd,076093,146.64,CONSOLIDATED TRAVEL CHARGES wk 10,BD1 3AZ,Programme
Food Standards Agency,Food Standards Agency,12/03/2014,International Travel,Consumer Protection & Commercial Support,Redfern Travel Ltd,074684,145.90,CONSOLIDATED TRAVEL CHARGES wk 9,BD1 3AZ,Admin
Food Standards Agency,Food Standards Agency,18/03/2014,Travel UK ,Food Policy Private Office,Redfern Travel Ltd,076093,144.97,CONSOLIDATED TRAVEL CHARGES wk 10,BD1 3AZ,Admin
Food Standards Agency,Food Standards Agency,12/03/2014,Travel UK ,Investigations,Redfern Travel Ltd,074684,144.78,CONSOLIDATED TRAVEL CHARGES wk 9,BD1 3AZ,Admin
Food Standards Agency,Food Standards Agency,28/03/2014,International Subsistence,Comms Directors Office,Redfern Travel Ltd,076606,143.20,CONSOLIDATED TRAVEL CHARGES wk 12,BD1 3AZ,Admin
Food Standards Agency,Food Standards Agency,28/03/2014,Travel UK ,Non Meat Field Ops,Redfern Travel Ltd,076606,142.10,CONSOLIDATED TRAVEL CHARGES wk 12,BD1 3AZ,Programme
Food Standards Agency,Food Standards Agency,12/03/2014,Travel UK ,IT HoD,Redfern Travel Ltd,074684,141.77,CONSOLIDATED TRAVEL CHARGES wk 9,BD1 3AZ,Admin
Food Standards Agency,Food Standards Agency,18/03/2014,Subsistence UK,Area 5 South West England - Cluster 54,Redfern Travel Ltd,076093,140.12,CONSOLIDATED TRAVEL CHARGES wk 10,BD1 3AZ,Programme
Food Standards Agency,Food Standards Agency,18/03/2014,Subsistence UK,FSA Board,Redfern Travel Ltd,076093,140.12,CONSOLIDATED TRAVEL CHARGES wk 10,BD1 3AZ,Admin
Food Standards Agency,Food Standards Agency,28/03/2014,Subsistence - EC,FSA Board,Redfern Travel Ltd,076606,139.80,CONSOLIDATED TRAVEL CHARGES wk 12,BD1 3AZ,Admin
Food Standards Agency,Food Standards Agency,28/03/2014,Subsistence - EC,Legal Branch A,Redfern Travel Ltd,076606,139.80,CONSOLIDATED TRAVEL CHARGES wk 12,BD1 3AZ,Admin
Food Standards Agency,Food Standards Agency,28/03/2014,Subsistence - EC,Planning and Performance,Redfern Travel Ltd,076606,139.80,CONSOLIDATED TRAVEL CHARGES wk 12,BD1 3AZ,Admin
Food Standards Agency,Food Standards Agency,12/03/2014,Subsistence - EC,EU Regulatory Reform Branch,Redfern Travel Ltd,074684,138.40,CONSOLIDATED TRAVEL CHARGES wk 9,BD1 3AZ,Admin
Food Standards Agency,Food Standards Agency,28/03/2014,Subsistence - EC,Agricultural Process & Environmental Contaminants & Strategy,Redfern Travel Ltd,076606,137.39,CONSOLIDATED TRAVEL CHARGES wk 12,BD1 3AZ,Admin
Food Standards Agency,Food Standards Agency,18/03/2014,Travel UK ,FSA Board,Redfern Travel Ltd,076093,137.35,CONSOLIDATED TRAVEL CHARGES wk 10,BD1 3AZ,Admin
Food Standards Agency,Food Standards Agency,18/03/2014,Subsistence UK,Investigations,Redfern Travel Ltd,076093,136.88,CONSOLIDATED TRAVEL CHARGES wk 10,BD1 3AZ,Admin
Food Standards Agency,Food Standards Agency,18/03/2014,Subsistence UK,Area 6 South East England - Cluster 64,Redfern Travel Ltd,076093,136.12,CONSOLIDATED TRAVEL CHARGES wk 10,BD1 3AZ,Programme
Food Standards Agency,Food Standards Agency,18/03/2014,International Travel,EU Regulatory Reform Branch,Redfern Travel Ltd,076093,136.11,CONSOLIDATED TRAVEL CHARGES wk 10,BD1 3AZ,Admin
Food Standards Agency,Food Standards Agency,28/03/2014,International Travel,Legal Branch A,Redfern Travel Ltd,076606,135.90,CONSOLIDATED TRAVEL CHARGES wk 12,BD1 3AZ,Admin
Food Standards Agency,Food Standards Agency,18/03/2014,Travel UK ,Chief Executive & Private Office,Redfern Travel Ltd,076093,133.68,CONSOLIDATED TRAVEL CHARGES wk 10,BD1 3AZ,Admin
Food Standards Agency,Food Standards Agency,24/03/2014,Subsistence UK,Chair & Deputy Chair,Redfern Travel Ltd,076261,133.12,CONSOLIDATED TRAVEL CHARGES wk 11,BD1 3AZ,Admin
Food Standards Agency,Food Standards Agency,24/03/2014,Travel UK ,Area 4 North East England - Cluster 48,Redfern Travel Ltd,076261,132.30,CONSOLIDATED TRAVEL CHARGES wk 11,BD1 3AZ,Programme
Food Standards Agency,Food Standards Agency,24/03/2014,Subsistence UK,Area 3 North West England - Cluster 36,Redfern Travel Ltd,076261,131.56,CONSOLIDATED TRAVEL CHARGES wk 11,BD1 3AZ,Programme
Food Standards Agency,Food Standards Agency,18/03/2014,Subsistence UK,Chair & Deputy Chair,Redfern Travel Ltd,076093,131.56,CONSOLIDATED TRAVEL CHARGES wk 10,BD1 3AZ,Admin
Food Standards Agency,Food Standards Agency,18/03/2014,Subsistence - EC,Radiation & Residues,Redfern Travel Ltd,076093,131.41,CONSOLIDATED TRAVEL CHARGES wk 10,BD1 3AZ,Admin
Food Standards Agency,Food Standards Agency,18/03/2014,International Travel,Agricultural Process & Environmental Contaminants & Strategy,Redfern Travel Ltd,076093,131.17,CONSOLIDATED TRAVEL CHARGES wk 10,BD1 3AZ,Admin
Food Standards Agency,Food Standards Agency,28/03/2014,Travel UK ,Animal Feed Branch,Redfern Travel Ltd,076606,130.90,CONSOLIDATED TRAVEL CHARGES wk 12,BD1 3AZ,Admin
Food Standards Agency,Food Standards Agency,18/03/2014,Travel EC - Other Travel,Investigations,Redfern Travel Ltd,076093,130.68,CONSOLIDATED TRAVEL CHARGES wk 10,BD1 3AZ,Admin
Food Standards Agency,Food Standards Agency,28/03/2014,Travel UK ,Legal Branch A,Redfern Travel Ltd,076606,128.48,CONSOLIDATED TRAVEL CHARGES wk 12,BD1 3AZ,Admin
Food Standards Agency,Food Standards Agency,12/03/2014,Subsistence UK,European & International Strategy,Redfern Travel Ltd,074684,128.11,CONSOLIDATED TRAVEL CHARGES wk 9,BD1 3AZ,Admin
Food Standards Agency,Food Standards Agency,28/03/2014,Travel UK ,Radiation & Residues,Redfern Travel Ltd,076606,127.06,CONSOLIDATED TRAVEL CHARGES wk 12,BD1 3AZ,Admin
Food Standards Agency,Food Standards Agency,12/03/2014,Subsistence UK,Area 6 South East England - Cluster 61,Redfern Travel Ltd,074684,126.56,CONSOLIDATED TRAVEL CHARGES wk 9,BD1 3AZ,Programme
Food Standards Agency,Food Standards Agency,12/03/2014,Subsistence UK,Area 6 South East England - Cluster 62,Redfern Travel Ltd,074684,126.56,CONSOLIDATED TRAVEL CHARGES wk 9,BD1 3AZ,Programme
Food Standards Agency,Food Standards Agency,24/03/2014,Subsistence UK,Area 6 South East England - Cluster 64,Redfern Travel Ltd,076261,126.56,CONSOLIDATED TRAVEL CHARGES wk 11,BD1 3AZ,Programme
Food Standards Agency,Food Standards Agency,28/03/2014,Subsistence UK,Allergens,Redfern Travel Ltd,076606,126.56,CONSOLIDATED TRAVEL CHARGES wk 12,BD1 3AZ,Admin
Food Standards Agency,Food Standards Agency,12/03/2014,Travel UK ,Area 4 North East England - Cluster 47,Redfern Travel Ltd,074684,121.68,CONSOLIDATED TRAVEL CHARGES wk 9,BD1 3AZ,Programme
Food Standards Agency,Food Standards Agency,18/03/2014,Subsistence UK,Area 5 South West England - Cluster 52,Redfern Travel Ltd,076093,121.56,CONSOLIDATED TRAVEL CHARGES wk 10,BD1 3AZ,Programme
Food Standards Agency,Food Standards Agency,12/03/2014,Travel UK ,Area 6 South East England - Cluster 62,Redfern Travel Ltd,074684,119.98,CONSOLIDATED TRAVEL CHARGES wk 9,BD1 3AZ,Programme
Food Standards Agency,Food Standards Agency,18/03/2014,Travel UK ,IT Information & Knowledge Management,Redfern Travel Ltd,076093,118.30,CONSOLIDATED TRAVEL CHARGES wk 10,BD1 3AZ,Admin
Food Standards Agency,Food Standards Agency,24/03/2014,Travel UK ,Area 6 South East England - Cluster 62,Redfern Travel Ltd,076261,118.19,CONSOLIDATED TRAVEL CHARGES wk 11,BD1 3AZ,Programme
Food Standards Agency,Food Standards Agency,18/03/2014,Subsistence - EC,Non Meat Field Ops,Redfern Travel Ltd,076093,116.88,CONSOLIDATED TRAVEL CHARGES wk 10,BD1 3AZ,Programme
Food Standards Agency,Food Standards Agency,18/03/2014,Subsistence - EC,Novel Food Unit,Redfern Travel Ltd,076093,116.04,CONSOLIDATED TRAVEL CHARGES wk 10,BD1 3AZ,Admin
Food Standards Agency,Food Standards Agency,18/03/2014,Subsistence UK,Food Production Branch,Redfern Travel Ltd,076093,115.32,CONSOLIDATED TRAVEL CHARGES wk 10,BD1 3AZ,Admin
Food Standards Agency,Food Standards Agency,18/03/2014,Travel UK ,Allergens,Redfern Travel Ltd,076093,113.46,CONSOLIDATED TRAVEL CHARGES wk 10,BD1 3AZ,Admin
Food Standards Agency,Food Standards Agency,28/03/2014,International Travel,Analysis & Research Branch,Redfern Travel Ltd,076606,109.95,CONSOLIDATED TRAVEL CHARGES wk 12,BD1 3AZ,Admin
Food Standards Agency,Food Standards Agency,28/03/2014,International Travel,Operations Local Delivery ,Redfern Travel Ltd,076606,109.95,CONSOLIDATED TRAVEL CHARGES wk 12,BD1 3AZ,Admin
Food Standards Agency,Food Standards Agency,12/03/2014,Subsistence UK,Internal Audit,Redfern Travel Ltd,074684,106.72,CONSOLIDATED TRAVEL CHARGES wk 9,BD1 3AZ,Admin
Food Standards Agency,Food Standards Agency,24/03/2014,Subsistence UK,Consumer Protection & Commercial Support,Redfern Travel Ltd,076261,106.53,CONSOLIDATED TRAVEL CHARGES wk 11,BD1 3AZ,Admin
Food Standards Agency,Food Standards Agency,24/03/2014,Subsistence UK,Area 6 South East England - Cluster 62,Redfern Travel Ltd,076261,105.17,CONSOLIDATED TRAVEL CHARGES wk 11,BD1 3AZ,Programme
Food Standards Agency,Food Standards Agency,28/03/2014,Travel UK ,Chemical Risk Assessment Unit,Redfern Travel Ltd,076606,104.23,CONSOLIDATED TRAVEL CHARGES wk 12,BD1 3AZ,Admin
Food Standards Agency,Food Standards Agency,18/03/2014,Subsistence UK,Area 1 Scotland - Cluster 11,Redfern Travel Ltd,076093,103.56,CONSOLIDATED TRAVEL CHARGES wk 10,BD1 3AZ,Programme
Food Standards Agency,Food Standards Agency,28/03/2014,Subsistence UK,Area 1 Scotland - Cluster 11,Redfern Travel Ltd,076606,103.56,CONSOLIDATED TRAVEL CHARGES wk 12,BD1 3AZ,Programme
Food Standards Agency,Food Standards Agency,18/03/2014,Travel UK ,Security & Estates,Redfern Travel Ltd,076093,102.28,CONSOLIDATED TRAVEL CHARGES wk 10,BD1 3AZ,Admin
Food Standards Agency,Food Standards Agency,28/03/2014,Travel UK ,Internal Audit,Redfern Travel Ltd,076606,102.28,CONSOLIDATED TRAVEL CHARGES wk 12,BD1 3AZ,Admin
Food Standards Agency,Food Standards Agency,18/03/2014,Travel UK ,Area 5 South West England - Cluster 53,Redfern Travel Ltd,076093,101.75,CONSOLIDATED TRAVEL CHARGES wk 10,BD1 3AZ,Programme
Food Standards Agency,Food Standards Agency,12/03/2014,Subsistence UK,Security & Estates,Redfern Travel Ltd,074684,100.56,CONSOLIDATED TRAVEL CHARGES wk 9,BD1 3AZ,Admin
Food Standards Agency,Food Standards Agency,18/03/2014,Travel UK ,Hygiene & Microbiology Division HoD,Redfern Travel Ltd,076093,99.88,CONSOLIDATED TRAVEL CHARGES wk 10,BD1 3AZ,Admin
Food Standards Agency,Food Standards Agency,28/03/2014,Subsistence UK,Microbiological Food Safety Branch,Redfern Travel Ltd,076606,99.56,CONSOLIDATED TRAVEL CHARGES wk 12,BD1 3AZ,Admin
Food Standards Agency,Food Standards Agency,12/03/2014,Subsistence UK,Legal Branch A,Redfern Travel Ltd,074684,97.81,CONSOLIDATED TRAVEL CHARGES wk 9,BD1 3AZ,Admin
Food Standards Agency,Food Standards Agency,12/03/2014,Subsistence UK,FSA Board,Redfern Travel Ltd,074684,96.77,CONSOLIDATED TRAVEL CHARGES wk 9,BD1 3AZ,Admin
Food Standards Agency,Food Standards Agency,28/03/2014,Subsistence UK,Area 5 South West England - Cluster 57,Redfern Travel Ltd,076606,96.56,CONSOLIDATED TRAVEL CHARGES wk 12,BD1 3AZ,Programme
Food Standards Agency,Food Standards Agency,12/03/2014,Subsistence - EC,Area 5 South West England - Cluster 57,Redfern Travel Ltd,074684,96.56,CONSOLIDATED TRAVEL CHARGES wk 9,BD1 3AZ,Programme
Food Standards Agency,Food Standards Agency,28/03/2014,Subsistence UK,Analysis & Research Branch,Redfern Travel Ltd,076606,95.21,CONSOLIDATED TRAVEL CHARGES wk 12,BD1 3AZ,Admin
Food Standards Agency,Food Standards Agency,24/03/2014,Subsistence UK,Chemical Risk Assessment Unit,Redfern Travel Ltd,076261,95.21,CONSOLIDATED TRAVEL CHARGES wk 11,BD1 3AZ,Admin
Food Standards Agency,Food Standards Agency,18/03/2014,Subsistence UK,Novel Food Unit,Redfern Travel Ltd,076093,95.21,CONSOLIDATED TRAVEL CHARGES wk 10,BD1 3AZ,Admin
Food Standards Agency,Food Standards Agency,24/03/2014,Travel UK ,Agricultural Process & Environmental Contaminants & Strategy,Redfern Travel Ltd,076261,94.49,CONSOLIDATED TRAVEL CHARGES wk 11,BD1 3AZ,Admin
Food Standards Agency,Food Standards Agency,28/03/2014,Travel UK ,Area 4 North East England - Cluster 46,Redfern Travel Ltd,076606,94.02,CONSOLIDATED TRAVEL CHARGES wk 12,BD1 3AZ,Programme
Food Standards Agency,Food Standards Agency,18/03/2014,Subsistence UK,European & International Strategy,Redfern Travel Ltd,076093,93.65,CONSOLIDATED TRAVEL CHARGES wk 10,BD1 3AZ,Admin
Food Standards Agency,Food Standards Agency,18/03/2014,Travel UK ,Area 2 Wales - Cluster 21,Redfern Travel Ltd,076093,91.99,CONSOLIDATED TRAVEL CHARGES wk 10,BD1 3AZ,Programme
Food Standards Agency,Food Standards Agency,12/03/2014,Travel UK ,Area 6 South East England - Cluster 65,Redfern Travel Ltd,074684,91.13,CONSOLIDATED TRAVEL CHARGES wk 9,BD1 3AZ,Programme
Food Standards Agency,Food Standards Agency,28/03/2014,Subsistence UK,Area 6 South East England - Cluster 66,Redfern Travel Ltd,076606,90.21,CONSOLIDATED TRAVEL CHARGES wk 12,BD1 3AZ,Programme
Food Standards Agency,Food Standards Agency,12/03/2014,Subsistence UK,Area 5 South West England - Cluster 51,Redfern Travel Ltd,074684,90.06,CONSOLIDATED TRAVEL CHARGES wk 9,BD1 3AZ,Programme
Food Standards Agency,Food Standards Agency,18/03/2014,Subsistence UK,Area 1 Scotland - Cluster 15,Redfern Travel Ltd,076093,89.56,CONSOLIDATED TRAVEL CHARGES wk 10,BD1 3AZ,Programme
Food Standards Agency,Food Standards Agency,12/03/2014,Subsistence UK,Agricultural Process & Environmental Contaminants & Strategy,Redfern Travel Ltd,074684,89.56,CONSOLIDATED TRAVEL CHARGES wk 9,BD1 3AZ,Admin
Food Standards Agency,Food Standards Agency,18/03/2014,Subsistence - EC,Area 5 South West England - Cluster 57,Redfern Travel Ltd,076093,89.52,CONSOLIDATED TRAVEL CHARGES wk 10,BD1 3AZ,Programme
Food Standards Agency,Food Standards Agency,24/03/2014,Subsistence UK,Area 1 Scotland - Cluster 12,Redfern Travel Ltd,076261,88.56,CONSOLIDATED TRAVEL CHARGES wk 11,BD1 3AZ,Programme
Food Standards Agency,Food Standards Agency,24/03/2014,Subsistence UK,Hygiene & Microbiology Division HoD,Redfern Travel Ltd,076261,88.56,CONSOLIDATED TRAVEL CHARGES wk 11,BD1 3AZ,Admin
Food Standards Agency,Food Standards Agency,28/03/2014,Subsistence UK,Food Policy Private Office,Redfern Travel Ltd,076606,88.56,CONSOLIDATED TRAVEL CHARGES wk 12,BD1 3AZ,Admin
Food Standards Agency,Food Standards Agency,18/03/2014,Subsistence UK,Procurement,Redfern Travel Ltd,076093,88.56,CONSOLIDATED TRAVEL CHARGES wk 10,BD1 3AZ,Admin
Food Standards Agency,Food Standards Agency,12/03/2014,Travel UK ,Area 4 North East England - Cluster 41,Redfern Travel Ltd,074684,88.25,CONSOLIDATED TRAVEL CHARGES wk 9,BD1 3AZ,Programme
Food Standards Agency,Food Standards Agency,12/03/2014,Subsistence UK,Area 5 South West England - Cluster 53,Redfern Travel Ltd,074684,87.81,CONSOLIDATED TRAVEL CHARGES wk 9,BD1 3AZ,Programme
Food Standards Agency,Food Standards Agency,24/03/2014,Travel UK ,Area 4 North East England - Cluster 41,Redfern Travel Ltd,076261,86.38,CONSOLIDATED TRAVEL CHARGES wk 11,BD1 3AZ,Programme
Food Standards Agency,Food Standards Agency,12/03/2014,Travel UK ,Area 3 North West England - Cluster 36,Redfern Travel Ltd,074684,85.79,CONSOLIDATED TRAVEL CHARGES wk 9,BD1 3AZ,Programme
Food Standards Agency,Food Standards Agency,28/03/2014,Subsistence UK,Area 5 South West England - Cluster 51,Redfern Travel Ltd,076606,84.51,CONSOLIDATED TRAVEL CHARGES wk 12,BD1 3AZ,Programme
Food Standards Agency,Food Standards Agency,24/03/2014,Subsistence UK,Food Hygiene Policy Branch,Redfern Travel Ltd,076261,83.56,CONSOLIDATED TRAVEL CHARGES wk 11,BD1 3AZ,Admin
Food Standards Agency,Food Standards Agency,28/03/2014,Travel UK ,Area 3 North West England - Cluster 35,Redfern Travel Ltd,076606,82.39,CONSOLIDATED TRAVEL CHARGES wk 12,BD1 3AZ,Programme
Food Standards Agency,Food Standards Agency,18/03/2014,International Travel,Food Hygiene Policy Branch,Redfern Travel Ltd,076093,81.50,CONSOLIDATED TRAVEL CHARGES wk 10,BD1 3AZ,Admin
Food Standards Agency,Food Standards Agency,18/03/2014,International Travel,Operations Local Delivery ,Redfern Travel Ltd,076093,81.25,CONSOLIDATED TRAVEL CHARGES wk 10,BD1 3AZ,Admin
Food Standards Agency,Food Standards Agency,28/03/2014,Travel UK ,Area 5 South West England - Cluster 53,Redfern Travel Ltd,076606,79.78,CONSOLIDATED TRAVEL CHARGES wk 12,BD1 3AZ,Programme
Food Standards Agency,Food Standards Agency,28/03/2014,Subsistence UK,Area 3 North West England - Cluster 31,Redfern Travel Ltd,076606,79.56,CONSOLIDATED TRAVEL CHARGES wk 12,BD1 3AZ,Programme
Food Standards Agency,Food Standards Agency,24/03/2014,Subsistence UK,Area 3 North West England - Cluster 33,Redfern Travel Ltd,076261,79.56,CONSOLIDATED TRAVEL CHARGES wk 11,BD1 3AZ,Programme
Food Standards Agency,Food Standards Agency,18/03/2014,Subsistence UK,Area 4 North East England - Cluster 41,Redfern Travel Ltd,076093,79.56,CONSOLIDATED TRAVEL CHARGES wk 10,BD1 3AZ,Programme
Food Standards Agency,Food Standards Agency,28/03/2014,Subsistence UK,Area 4 North East England - Cluster 46,Redfern Travel Ltd,076606,79.56,CONSOLIDATED TRAVEL CHARGES wk 12,BD1 3AZ,Programme
Food Standards Agency,Food Standards Agency,28/03/2014,International Travel,Analysis & Research Branch,Redfern Travel Ltd,076606,79.25,CONSOLIDATED TRAVEL CHARGES wk 12,BD1 3AZ,Admin
Food Standards Agency,Food Standards Agency,28/03/2014,Travel UK ,Area 1 Scotland - Cluster 12,Redfern Travel Ltd,076606,78.81,CONSOLIDATED TRAVEL CHARGES wk 12,BD1 3AZ,Programme
Food Standards Agency,Food Standards Agency,12/03/2014,Travel UK ,Area 6 South East England - Cluster 66,Redfern Travel Ltd,074684,78.28,CONSOLIDATED TRAVEL CHARGES wk 9,BD1 3AZ,Programme
Food Standards Agency,Food Standards Agency,28/03/2014,International Travel,Area 2 Wales - Cluster 21,Redfern Travel Ltd,076606,77.84,CONSOLIDATED TRAVEL CHARGES wk 12,BD1 3AZ,Programme
Food Standards Agency,Food Standards Agency,24/03/2014,Travel UK ,Area 6 South East England - Cluster 64,Redfern Travel Ltd,076261,77.64,CONSOLIDATED TRAVEL CHARGES wk 11,BD1 3AZ,Programme
Food Standards Agency,Food Standards Agency,28/03/2014,Subsistence - EC,HR,Redfern Travel Ltd,076606,76.93,CONSOLIDATED TRAVEL CHARGES wk 12,BD1 3AZ,Admin
Food Standards Agency,Food Standards Agency,12/03/2014,Subsistence UK,Hygiene & Microbiology Division HoD,Redfern Travel Ltd,074684,76.81,CONSOLIDATED TRAVEL CHARGES wk 9,BD1 3AZ,Admin
Food Standards Agency,Food Standards Agency,12/03/2014,Subsistence UK,Meat & Hygiene & TSE Policy Branch,Redfern Travel Ltd,074684,76.81,CONSOLIDATED TRAVEL CHARGES wk 9,BD1 3AZ,Admin
Food Standards Agency,Food Standards Agency,12/03/2014,Subsistence UK,Area 1 Scotland - Cluster 13,Redfern Travel Ltd,074684,76.21,CONSOLIDATED TRAVEL CHARGES wk 9,BD1 3AZ,Programme
Food Standards Agency,Food Standards Agency,28/03/2014,Subsistence UK,Area 1 Scotland - Cluster 13,Redfern Travel Ltd,076606,76.21,CONSOLIDATED TRAVEL CHARGES wk 12,BD1 3AZ,Programme
Food Standards Agency,Food Standards Agency,28/03/2014,Subsistence UK,Area 1 Scotland - Cluster 15,Redfern Travel Ltd,076606,76.21,CONSOLIDATED TRAVEL CHARGES wk 12,BD1 3AZ,Programme
Food Standards Agency,Food Standards Agency,12/03/2014,Travel UK ,Animal Feed Branch,Redfern Travel Ltd,074684,75.19,CONSOLIDATED TRAVEL CHARGES wk 9,BD1 3AZ,Admin
Food Standards Agency,Food Standards Agency,28/03/2014,Subsistence UK,Area 6 South East England - Cluster 62,Redfern Travel Ltd,076606,74.88,CONSOLIDATED TRAVEL CHARGES wk 12,BD1 3AZ,Programme
Food Standards Agency,Food Standards Agency,12/03/2014,Subsistence UK,Area 4 North East England - Cluster 47,Redfern Travel Ltd,074684,74.04,CONSOLIDATED TRAVEL CHARGES wk 9,BD1 3AZ,Programme
Food Standards Agency,Food Standards Agency,18/03/2014,Travel UK ,Area 6 South East England - Cluster 65,Redfern Travel Ltd,076093,73.96,CONSOLIDATED TRAVEL CHARGES wk 10,BD1 3AZ,Programme
Food Standards Agency,Food Standards Agency,24/03/2014,Subsistence UK,Area 5 South West England - Cluster 54,Redfern Travel Ltd,076261,73.56,CONSOLIDATED TRAVEL CHARGES wk 11,BD1 3AZ,Programme
Food Standards Agency,Food Standards Agency,18/03/2014,Subsistence UK,Area 1 Scotland - Cluster 12,Redfern Travel Ltd,076093,73.32,CONSOLIDATED TRAVEL CHARGES wk 10,BD1 3AZ,Programme
Food Standards Agency,Food Standards Agency,12/03/2014,Subsistence UK,Area 3 North West England - Cluster 32,Redfern Travel Ltd,074684,73.32,CONSOLIDATED TRAVEL CHARGES wk 9,BD1 3AZ,Programme
Food Standards Agency,Food Standards Agency,28/03/2014,Subsistence UK,Area 3 North West England - Cluster 33,Redfern Travel Ltd,076606,73.32,CONSOLIDATED TRAVEL CHARGES wk 12,BD1 3AZ,Programme
Food Standards Agency,Food Standards Agency,24/03/2014,Subsistence UK,Area 3 North West England - Cluster 34,Redfern Travel Ltd,076261,73.32,CONSOLIDATED TRAVEL CHARGES wk 11,BD1 3AZ,Programme
Food Standards Agency,Food Standards Agency,12/03/2014,Subsistence UK,Area 3 North West England - Cluster 36,Redfern Travel Ltd,074684,73.32,CONSOLIDATED TRAVEL CHARGES wk 9,BD1 3AZ,Programme
Food Standards Agency,Food Standards Agency,24/03/2014,Subsistence UK,Area 4 North East England - Cluster 42,Redfern Travel Ltd,076261,73.32,CONSOLIDATED TRAVEL CHARGES wk 11,BD1 3AZ,Programme
Food Standards Agency,Food Standards Agency,28/03/2014,Subsistence UK,Area 4 North East England - Cluster 42,Redfern Travel Ltd,076606,73.32,CONSOLIDATED TRAVEL CHARGES wk 12,BD1 3AZ,Programme
Food Standards Agency,Food Standards Agency,24/03/2014,Subsistence UK,Area 4 North East England - Cluster 45,Redfern Travel Ltd,076261,73.32,CONSOLIDATED TRAVEL CHARGES wk 11,BD1 3AZ,Programme
Food Standards Agency,Food Standards Agency,12/03/2014,Subsistence UK,Area 4 North East England - Cluster 48,Redfern Travel Ltd,074684,73.32,CONSOLIDATED TRAVEL CHARGES wk 9,BD1 3AZ,Programme
Food Standards Agency,Food Standards Agency,18/03/2014,Subsistence UK,Area 4 North East England - Cluster 48,Redfern Travel Ltd,076093,73.32,CONSOLIDATED TRAVEL CHARGES wk 10,BD1 3AZ,Programme
Food Standards Agency,Food Standards Agency,28/03/2014,Subsistence UK,Area 4 North East England - Cluster 48,Redfern Travel Ltd,076606,73.32,CONSOLIDATED TRAVEL CHARGES wk 12,BD1 3AZ,Programme
Food Standards Agency,Food Standards Agency,18/03/2014,Subsistence UK,Area 5 South West England - Cluster 56,Redfern Travel Ltd,076093,73.32,CONSOLIDATED TRAVEL CHARGES wk 10,BD1 3AZ,Programme
Food Standards Agency,Food Standards Agency,28/03/2014,Subsistence UK,Area 5 South West England - Cluster 56,Redfern Travel Ltd,076606,73.32,CONSOLIDATED TRAVEL CHARGES wk 12,BD1 3AZ,Programme
Food Standards Agency,Food Standards Agency,12/03/2014,Subsistence UK,Area 6 South East England - Cluster 65,Redfern Travel Ltd,074684,73.32,CONSOLIDATED TRAVEL CHARGES wk 9,BD1 3AZ,Programme
Food Standards Agency,Food Standards Agency,24/03/2014,Subsistence UK,Area 6 South East England - Cluster 65,Redfern Travel Ltd,076261,73.32,CONSOLIDATED TRAVEL CHARGES wk 11,BD1 3AZ,Programme
Food Standards Agency,Food Standards Agency,24/03/2014,Subsistence UK,Area 5 South West England - Cluster 52,Redfern Travel Ltd,076261,72.56,CONSOLIDATED TRAVEL CHARGES wk 11,BD1 3AZ,Programme
Food Standards Agency,Food Standards Agency,18/03/2014,Subsistence UK,Legal Branch A,Redfern Travel Ltd,076093,71.56,CONSOLIDATED TRAVEL CHARGES wk 10,BD1 3AZ,Admin
Food Standards Agency,Food Standards Agency,24/03/2014,Travel UK ,Area 3 North West England - Cluster 33,Redfern Travel Ltd,076261,70.95,CONSOLIDATED TRAVEL CHARGES wk 11,BD1 3AZ,Programme
Food Standards Agency,Food Standards Agency,18/03/2014,Subsistence UK,Area 5 South West England - Cluster 53,Redfern Travel Ltd,076093,69.12,CONSOLIDATED TRAVEL CHARGES wk 10,BD1 3AZ,Programme
Food Standards Agency,Food Standards Agency,24/03/2014,Subsistence UK,Area 3 North West England - Cluster 35,Redfern Travel Ltd,076261,67.98,CONSOLIDATED TRAVEL CHARGES wk 11,BD1 3AZ,Programme
Food Standards Agency,Food Standards Agency,18/03/2014,Subsistence UK,Area 6 South East England - Cluster 61,Redfern Travel Ltd,076093,67.98,CONSOLIDATED TRAVEL CHARGES wk 10,BD1 3AZ,Programme
Food Standards Agency,Food Standards Agency,18/03/2014,Subsistence UK,Area 4 North East England - Cluster 44,Redfern Travel Ltd,076093,67.56,CONSOLIDATED TRAVEL CHARGES wk 10,BD1 3AZ,Programme
Food Standards Agency,Food Standards Agency,12/03/2014,Subsistence UK,Analysis & Research Branch,Redfern Travel Ltd,074684,67.56,CONSOLIDATED TRAVEL CHARGES wk 9,BD1 3AZ,Admin
Food Standards Agency,Food Standards Agency,28/03/2014,Subsistence UK,Chemical Risk Assessment Unit,Redfern Travel Ltd,076606,67.56,CONSOLIDATED TRAVEL CHARGES wk 12,BD1 3AZ,Admin
Food Standards Agency,Food Standards Agency,28/03/2014,Subsistence UK,Approvals & Veterinary Advice,Redfern Travel Ltd,076606,67.00,CONSOLIDATED TRAVEL CHARGES wk 12,BD1 3AZ,Programme
Food Standards Agency,Food Standards Agency,12/03/2014,Travel UK ,Chief Scientist,Redfern Travel Ltd,074684,66.89,CONSOLIDATED TRAVEL CHARGES wk 9,BD1 3AZ,Admin
Food Standards Agency,Food Standards Agency,28/03/2014,Travel UK ,Official Feed & Foods Controls Policy Unit,Redfern Travel Ltd,076606,66.60,CONSOLIDATED TRAVEL CHARGES wk 12,BD1 3AZ,Admin
Food Standards Agency,Food Standards Agency,18/03/2014,Travel UK ,European & International Strategy,Redfern Travel Ltd,076093,65.53,CONSOLIDATED TRAVEL CHARGES wk 10,BD1 3AZ,Admin
Food Standards Agency,Food Standards Agency,18/03/2014,Subsistence UK,Allergens,Redfern Travel Ltd,076093,65.06,CONSOLIDATED TRAVEL CHARGES wk 10,BD1 3AZ,Admin
Food Standards Agency,Food Standards Agency,28/03/2014,Travel UK ,Area 6 South East England - Cluster 61,Redfern Travel Ltd,076606,62.70,CONSOLIDATED TRAVEL CHARGES wk 12,BD1 3AZ,Programme
Food Standards Agency,Food Standards Agency,12/03/2014,Travel UK ,Area 1 Scotland - Cluster 12,Redfern Travel Ltd,074684,62.12,CONSOLIDATED TRAVEL CHARGES wk 9,BD1 3AZ,Programme
Food Standards Agency,Food Standards Agency,12/03/2014,Subsistence UK,Radiation & Residues,Redfern Travel Ltd,074684,61.56,CONSOLIDATED TRAVEL CHARGES wk 9,BD1 3AZ,Admin
Food Standards Agency,Food Standards Agency,24/03/2014,Travel UK ,Area 1 Scotland - Cluster 13,Redfern Travel Ltd,076261,61.54,CONSOLIDATED TRAVEL CHARGES wk 11,BD1 3AZ,Programme
Food Standards Agency,Food Standards Agency,28/03/2014,Subsistence UK,Legal Branch A,Redfern Travel Ltd,076606,61.36,CONSOLIDATED TRAVEL CHARGES wk 12,BD1 3AZ,Admin
Food Standards Agency,Food Standards Agency,24/03/2014,Subsistence UK,European & International Strategy,Redfern Travel Ltd,076261,61.36,CONSOLIDATED TRAVEL CHARGES wk 11,BD1 3AZ,Admin
Food Standards Agency,Food Standards Agency,28/03/2014,Subsistence UK,Finance Director & Branch,Redfern Travel Ltd,076606,61.36,CONSOLIDATED TRAVEL CHARGES wk 12,BD1 3AZ,Admin
Food Standards Agency,Food Standards Agency,18/03/2014,Subsistence - EC,Operational Delivery,Redfern Travel Ltd,076093,61.24,CONSOLIDATED TRAVEL CHARGES wk 10,BD1 3AZ,Programme
Food Standards Agency,Food Standards Agency,28/03/2014,Travel UK ,Area 1 Scotland - Cluster 15,Redfern Travel Ltd,076606,61.01,CONSOLIDATED TRAVEL CHARGES wk 12,BD1 3AZ,Programme
Food Standards Agency,Food Standards Agency,18/03/2014,Subsistence UK,Area 3 North West England - Cluster 36,Redfern Travel Ltd,076093,60.56,CONSOLIDATED TRAVEL CHARGES wk 10,BD1 3AZ,Programme
Food Standards Agency,Food Standards Agency,24/03/2014,Subsistence UK,Area 5 South West England - Cluster 51,Redfern Travel Ltd,076261,60.56,CONSOLIDATED TRAVEL CHARGES wk 11,BD1 3AZ,Programme
Food Standards Agency,Food Standards Agency,24/03/2014,Subsistence UK,Food Policy Private Office,Redfern Travel Ltd,076261,59.78,CONSOLIDATED TRAVEL CHARGES wk 11,BD1 3AZ,Admin
Food Standards Agency,Food Standards Agency,24/03/2014,Subsistence UK,IT HoD,Redfern Travel Ltd,076261,58.56,CONSOLIDATED TRAVEL CHARGES wk 11,BD1 3AZ,Admin
Food Standards Agency,Food Standards Agency,18/03/2014,Subsistence UK,Agricultural Process & Environmental Contaminants & Strategy,Redfern Travel Ltd,076093,57.56,CONSOLIDATED TRAVEL CHARGES wk 10,BD1 3AZ,Admin
Food Standards Agency,Food Standards Agency,18/03/2014,Travel UK ,Area 6 South East England - Cluster 62,Redfern Travel Ltd,076093,57.37,CONSOLIDATED TRAVEL CHARGES wk 10,BD1 3AZ,Programme
Food Standards Agency,Food Standards Agency,18/03/2014,Travel UK ,Area 4 North East England - Cluster 47,Redfern Travel Ltd,076093,56.64,CONSOLIDATED TRAVEL CHARGES wk 10,BD1 3AZ,Programme
Food Standards Agency,Food Standards Agency,18/03/2014,Travel UK ,Area 4 North East England - Cluster 41,Redfern Travel Ltd,076093,56.25,CONSOLIDATED TRAVEL CHARGES wk 10,BD1 3AZ,Programme
Food Standards Agency,Food Standards Agency,24/03/2014,Subsistence UK,Radiation & Residues,Redfern Travel Ltd,076261,55.51,CONSOLIDATED TRAVEL CHARGES wk 11,BD1 3AZ,Admin
Food Standards Agency,Food Standards Agency,18/03/2014,Travel UK ,Area 4 North East England - Cluster 44,Redfern Travel Ltd,076093,54.51,CONSOLIDATED TRAVEL CHARGES wk 10,BD1 3AZ,Programme
Food Standards Agency,Food Standards Agency,12/03/2014,Travel UK ,Area 3 North West England - Cluster 35,Redfern Travel Ltd,074684,54.46,CONSOLIDATED TRAVEL CHARGES wk 9,BD1 3AZ,Programme
Food Standards Agency,Food Standards Agency,24/03/2014,Travel UK ,Area 3 North West England - Cluster 35,Redfern Travel Ltd,076261,54.46,CONSOLIDATED TRAVEL CHARGES wk 11,BD1 3AZ,Programme
Food Standards Agency,Food Standards Agency,28/03/2014,Travel UK ,FSA Board,Redfern Travel Ltd,076606,54.17,CONSOLIDATED TRAVEL CHARGES wk 12,BD1 3AZ,Admin
Food Standards Agency,Food Standards Agency,28/03/2014,Travel UK ,Area 4 North East England - Cluster 48,Redfern Travel Ltd,076606,51.65,CONSOLIDATED TRAVEL CHARGES wk 12,BD1 3AZ,Programme
Food Standards Agency,Food Standards Agency,12/03/2014,Travel UK ,Area 6 South East England - Cluster 61,Redfern Travel Ltd,074684,51.07,CONSOLIDATED TRAVEL CHARGES wk 9,BD1 3AZ,Programme
Food Standards Agency,Food Standards Agency,28/03/2014,Car hire expenses (short term),Consumer Protection & Commercial Support,Redfern Travel Ltd,076606,50.40,CONSOLIDATED TRAVEL CHARGES wk 12,BD1 3AZ,Admin
Food Standards Agency,Food Standards Agency,24/03/2014,International Travel,Consumer Protection & Commercial Support,Redfern Travel Ltd,076261,47.91,CONSOLIDATED TRAVEL CHARGES wk 11,BD1 3AZ,Admin
Food Standards Agency,Food Standards Agency,24/03/2014,Travel UK ,Investigations,Redfern Travel Ltd,076261,46.90,CONSOLIDATED TRAVEL CHARGES wk 11,BD1 3AZ,Admin
Food Standards Agency,Food Standards Agency,18/03/2014,Subsistence UK,Radiation & Residues,Redfern Travel Ltd,076093,46.56,CONSOLIDATED TRAVEL CHARGES wk 10,BD1 3AZ,Admin
Food Standards Agency,Food Standards Agency,12/03/2014,Travel UK ,Security & Estates,Redfern Travel Ltd,074684,44.60,CONSOLIDATED TRAVEL CHARGES wk 9,BD1 3AZ,Admin
Food Standards Agency,Food Standards Agency,12/03/2014,Travel UK ,Microbiological Food Safety Branch,Redfern Travel Ltd,074684,39.24,CONSOLIDATED TRAVEL CHARGES wk 9,BD1 3AZ,Admin
Food Standards Agency,Food Standards Agency,24/03/2014,Travel UK ,Hygiene & Microbiology Division HoD,Redfern Travel Ltd,076261,38.76,CONSOLIDATED TRAVEL CHARGES wk 11,BD1 3AZ,Admin
Food Standards Agency,Food Standards Agency,12/03/2014,Travel UK ,Area 5 South West England - Cluster 53,Redfern Travel Ltd,074684,33.41,CONSOLIDATED TRAVEL CHARGES wk 9,BD1 3AZ,Programme
Food Standards Agency,Food Standards Agency,28/03/2014,Subsistence UK,Area 5 South West England - Cluster 53,Redfern Travel Ltd,076606,31.56,CONSOLIDATED TRAVEL CHARGES wk 12,BD1 3AZ,Programme
Food Standards Agency,Food Standards Agency,18/03/2014,Travel UK ,Microbiological Food Safety Branch,Redfern Travel Ltd,076093,29.06,CONSOLIDATED TRAVEL CHARGES wk 10,BD1 3AZ,Admin
Food Standards Agency,Food Standards Agency,12/03/2014,Travel UK ,Area 4 North East England - Cluster 44,Redfern Travel Ltd,074684,27.88,CONSOLIDATED TRAVEL CHARGES wk 9,BD1 3AZ,Programme
Food Standards Agency,Food Standards Agency,12/03/2014,Travel UK ,Food Hygiene Policy Branch,Redfern Travel Ltd,074684,21.78,CONSOLIDATED TRAVEL CHARGES wk 9,BD1 3AZ,Admin
Food Standards Agency,Food Standards Agency,12/03/2014,International Travel,Agricultural Process & Environmental Contaminants & Strategy,Redfern Travel Ltd,074684,21.26,CONSOLIDATED TRAVEL CHARGES wk 9,BD1 3AZ,Admin
Food Standards Agency,Food Standards Agency,28/03/2014,Travel UK ,Area 3 North West England - Cluster 33,Redfern Travel Ltd,076606,20.31,CONSOLIDATED TRAVEL CHARGES wk 12,BD1 3AZ,Programme
Food Standards Agency,Food Standards Agency,28/03/2014,Subsistence UK,Security & Estates,Redfern Travel Ltd,076606,19.80,CONSOLIDATED TRAVEL CHARGES wk 12,BD1 3AZ,Admin
Food Standards Agency,Food Standards Agency,24/03/2014,International Travel,Radiation & Residues,Redfern Travel Ltd,076261,19.46,CONSOLIDATED TRAVEL CHARGES wk 11,BD1 3AZ,Admin
Food Standards Agency,Food Standards Agency,24/03/2014,International Travel,Agricultural Process & Environmental Contaminants & Strategy,Redfern Travel Ltd,076261,19.36,CONSOLIDATED TRAVEL CHARGES wk 11,BD1 3AZ,Admin
Food Standards Agency,Food Standards Agency,28/03/2014,Travel UK ,Area 3 North West England - Cluster 36,Redfern Travel Ltd,076606,19.34,CONSOLIDATED TRAVEL CHARGES wk 12,BD1 3AZ,Programme
Food Standards Agency,Food Standards Agency,12/03/2014,International Travel,HR,Redfern Travel Ltd,074684,18.54,CONSOLIDATED TRAVEL CHARGES wk 9,BD1 3AZ,Admin
Food Standards Agency,Food Standards Agency,24/03/2014,International Travel,Chemical Risk Assessment Unit,Redfern Travel Ltd,076261,18.48,CONSOLIDATED TRAVEL CHARGES wk 11,BD1 3AZ,Admin
Food Standards Agency,Food Standards Agency,18/03/2014,Travel UK ,Food Hygiene Policy Branch,Redfern Travel Ltd,076093,15.96,CONSOLIDATED TRAVEL CHARGES wk 10,BD1 3AZ,Admin
Food Standards Agency,Food Standards Agency,18/03/2014,Travel UK ,Foodborne Diseases Branch,Redfern Travel Ltd,076093,15.87,CONSOLIDATED TRAVEL CHARGES wk 10,BD1 3AZ,Admin
Food Standards Agency,Food Standards Agency,28/03/2014,Travel UK ,Foodborne Diseases Branch,Redfern Travel Ltd,076606,15.77,CONSOLIDATED TRAVEL CHARGES wk 12,BD1 3AZ,Admin
Food Standards Agency,Food Standards Agency,24/03/2014,International Travel,Additives,Redfern Travel Ltd,076261,13.54,CONSOLIDATED TRAVEL CHARGES wk 11,BD1 3AZ,Admin
Food Standards Agency,Food Standards Agency,18/03/2014,International Travel,Analysis & Research Branch,Redfern Travel Ltd,076093,10.63,CONSOLIDATED TRAVEL CHARGES wk 10,BD1 3AZ,Admin
Food Standards Agency,Food Standards Agency,24/03/2014,Subsistence UK,FSA Board,Redfern Travel Ltd,076261,7.80,CONSOLIDATED TRAVEL CHARGES wk 11,BD1 3AZ,Admin
Food Standards Agency,Food Standards Agency,18/03/2014,International Travel,Hygiene & Microbiology Division HoD,Redfern Travel Ltd,076093,7.43,CONSOLIDATED TRAVEL CHARGES wk 10,BD1 3AZ,Admin
Food Standards Agency,Food Standards Agency,12/03/2014,Subsistence - EC,Analysis & Research Branch,Redfern Travel Ltd,074684,4.68,CONSOLIDATED TRAVEL CHARGES wk 9,BD1 3AZ,Admin
Food Standards Agency,Food Standards Agency,18/03/2014,Subsistence - EC,Food Hygiene Policy Branch,Redfern Travel Ltd,076093,4.68,CONSOLIDATED TRAVEL CHARGES wk 10,BD1 3AZ,Admin
Food Standards Agency,Food Standards Agency,28/03/2014,Subsistence - EC,Food Hygiene Policy Branch,Redfern Travel Ltd,076606,3.12,CONSOLIDATED TRAVEL CHARGES wk 12,BD1 3AZ,Admin
Food Standards Agency,Food Standards Agency,24/03/2014,Subsistence - EC,Novel Food Unit,Redfern Travel Ltd,076261,2.08,CONSOLIDATED TRAVEL CHARGES wk 11,BD1 3AZ,Admin
Food Standards Agency,Food Standards Agency,28/03/2014,Subsistence UK,Area 4 North East England - Cluster 44,Redfern Travel Ltd,076606,1.56,CONSOLIDATED TRAVEL CHARGES wk 12,BD1 3AZ,Programme
Food Standards Agency,Food Standards Agency,12/03/2014,Subsistence UK,Area 6 South East England - Cluster 66,Redfern Travel Ltd,074684,1.56,CONSOLIDATED TRAVEL CHARGES wk 9,BD1 3AZ,Programme
Food Standards Agency,Food Standards Agency,18/03/2014,Subsistence UK,Chief Executive & Private Office,Redfern Travel Ltd,076093,1.56,CONSOLIDATED TRAVEL CHARGES wk 10,BD1 3AZ,Admin
Food Standards Agency,Food Standards Agency,18/03/2014,Subsistence - EC,Official Feed & Foods Controls Policy Unit,Redfern Travel Ltd,076093,1.56,CONSOLIDATED TRAVEL CHARGES wk 10,BD1 3AZ,Admin
Food Standards Agency,Food Standards Agency,28/03/2014,International Subsistence,Operations Local Delivery ,Redfern Travel Ltd,076606,1.56,CONSOLIDATED TRAVEL CHARGES wk 12,BD1 3AZ,Admin
Food Standards Agency,Food Standards Agency,18/03/2014,Subsistence - EC,Consumer Protection & Commercial Support,Redfern Travel Ltd,076093,1.56,CONSOLIDATED TRAVEL CHARGES wk 10,BD1 3AZ,Admin
Food Standards Agency,Food Standards Agency,28/03/2014,Subsistence - EC,Consumer Protection & Commercial Support,Redfern Travel Ltd,076606,1.56,CONSOLIDATED TRAVEL CHARGES wk 12,BD1 3AZ,Admin
Food Standards Agency,Food Standards Agency,18/03/2014,Subsistence - EC,Non Meat Field Ops,Redfern Travel Ltd,076093,1.56,CONSOLIDATED TRAVEL CHARGES wk 10,BD1 3AZ,Programme
Food Standards Agency,Food Standards Agency,24/03/2014,Subsistence - EC,Non Meat Field Ops,Redfern Travel Ltd,076261,1.56,CONSOLIDATED TRAVEL CHARGES wk 11,BD1 3AZ,Programme
Food Standards Agency,Food Standards Agency,24/03/2014,Subsistence - EC,Operations Assurance,Redfern Travel Ltd,076261,1.56,CONSOLIDATED TRAVEL CHARGES wk 11,BD1 3AZ,Programme
Food Standards Agency,Food Standards Agency,28/03/2014,Subsistence UK,Radiation & Residues,Redfern Travel Ltd,076606,1.56,CONSOLIDATED TRAVEL CHARGES wk 12,BD1 3AZ,Admin
Food Standards Agency,Food Standards Agency,18/03/2014,International Subsistence,Agricultural Process & Environmental Contaminants & Strategy,Redfern Travel Ltd,076093,1.56,CONSOLIDATED TRAVEL CHARGES wk 10,BD1 3AZ,Admin
Food Standards Agency,Food Standards Agency,12/03/2014,Travel UK ,Agricultural Process & Environmental Contaminants & Strategy,Redfern Travel Ltd,074684,1.56,CONSOLIDATED TRAVEL CHARGES wk 9,BD1 3AZ,Admin
Food Standards Agency,Food Standards Agency,12/03/2014,Subsistence - EC,Agricultural Process & Environmental Contaminants & Strategy,Redfern Travel Ltd,074684,1.56,CONSOLIDATED TRAVEL CHARGES wk 9,BD1 3AZ,Admin
Food Standards Agency,Food Standards Agency,24/03/2014,Subsistence - EC,EU Regulatory Reform Branch,Redfern Travel Ltd,076261,1.56,CONSOLIDATED TRAVEL CHARGES wk 11,BD1 3AZ,Admin
Food Standards Agency,Food Standards Agency,28/03/2014,International Subsistence,Food Hygiene Policy Branch,Redfern Travel Ltd,076606,1.56,CONSOLIDATED TRAVEL CHARGES wk 12,BD1 3AZ,Admin
Food Standards Agency,Food Standards Agency,12/03/2014,Subsistence - EC,Additives,Redfern Travel Ltd,074684,1.56,CONSOLIDATED TRAVEL CHARGES wk 9,BD1 3AZ,Admin
Food Standards Agency,Food Standards Agency,24/03/2014,Subsistence - EC,Additives,Redfern Travel Ltd,076261,1.56,CONSOLIDATED TRAVEL CHARGES wk 11,BD1 3AZ,Admin
Food Standards Agency,Food Standards Agency,12/03/2014,Subsistence - EC,Internal Audit,Redfern Travel Ltd,074684,1.56,CONSOLIDATED TRAVEL CHARGES wk 9,BD1 3AZ,Admin
Food Standards Agency,Food Standards Agency,18/03/2014,Travel UK ,Area 5 South West England - Cluster 57,Redfern Travel Ltd,076093,1.22,CONSOLIDATED TRAVEL CHARGES wk 10,BD1 3AZ,Programme
Food Standards Agency,Food Standards Agency,24/03/2014,Subsistence - EC,Agricultural Process & Environmental Contaminants & Strategy,Redfern Travel Ltd,076261,1.04,CONSOLIDATED TRAVEL CHARGES wk 11,BD1 3AZ,Admin
Food Standards Agency,Food Standards Agency,12/03/2014,Subsistence - EC,Allergens,Redfern Travel Ltd,074684,0.78,CONSOLIDATED TRAVEL CHARGES wk 9,BD1 3AZ,Admin
Food Standards Agency,Food Standards Agency,12/03/2014,Subsistence - EC,Food Policy Private Office,Redfern Travel Ltd,074684,0.78,CONSOLIDATED TRAVEL CHARGES wk 9,BD1 3AZ,Admin
Food Standards Agency,Food Standards Agency,04/03/2014,Programme Expense,Food & Feed Monitoring & Policy,C E F A S,8003579,0.16,"FS315016, Chemical Contaminant analysis for FSA UK Jan 14",NR33 0HT,Programme
Food Standards Agency,Food Standards Agency,26/03/2014,Fixed Assets Additions,IT Strategy,Capita Secure Information Solutions Ltd,93299442,0.01,PO 414917 FSA 317A CHARGES,SN14 0TW,Capital
Food Standards Agency,Food Standards Agency,12/03/2014,Mobile phone charges,IT Service Delivery,Vodafone Ltd,70957299,-0.01,QUARTERLY CHARGES VOICE & DATA FEB 14,RG14 5FF,Admin
Food Standards Agency,Food Standards Agency,28/03/2014,International Travel,Consumer Protection & Commercial Support,Redfern Travel Ltd,076606,-3.73,CONSOLIDATED TRAVEL CHARGES wk 12,BD1 3AZ,Admin
Food Standards Agency,Food Standards Agency,12/03/2014,Travel UK ,Agricultural Process & Environmental Contaminants & Strategy,Redfern Travel Ltd,074684,-3.73,CONSOLIDATED TRAVEL CHARGES wk 9,BD1 3AZ,Admin
Food Standards Agency,Food Standards Agency,18/03/2014,Travel UK ,Investigations,Redfern Travel Ltd,076093,-6.00,CONSOLIDATED TRAVEL CHARGES wk 10,BD1 3AZ,Admin
Food Standards Agency,Food Standards Agency,28/03/2014,Travel UK ,Food Hygiene Policy Branch,Redfern Travel Ltd,076606,-14.88,CONSOLIDATED TRAVEL CHARGES wk 12,BD1 3AZ,Admin
Food Standards Agency,Food Standards Agency,12/03/2014,Travel UK ,Radiation & Residues,Redfern Travel Ltd,074684,-18.47,CONSOLIDATED TRAVEL CHARGES wk 9,BD1 3AZ,Admin
Food Standards Agency,Food Standards Agency,28/03/2014,Travel UK ,Area 5 South West England - Cluster 57,Redfern Travel Ltd,076606,-43.80,CONSOLIDATED TRAVEL CHARGES wk 12,BD1 3AZ,Programme
Food Standards Agency,Food Standards Agency,18/03/2014,Travel UK ,Area 5 South West England - Cluster 55,Redfern Travel Ltd,076093,-271.88,CONSOLIDATED TRAVEL CHARGES wk 10,BD1 3AZ,Programme
Food Standards Agency,Food Standards Agency,28/03/2014,Travel Lump sum,Procurement,Redfern Travel Ltd,076606,-432.58,CONSOLIDATED TRAVEL CHARGES wk 12,BD1 3AZ,Admin
Food Standards Agency,Food Standards Agency,12/03/2014,Travel UK ,FSA Board,Redfern Travel Ltd,074684,-499.91,CONSOLIDATED TRAVEL CHARGES wk 9,BD1 3AZ,Admin
Food Standards Agency,Food Standards Agency,26/03/2014,Fixed Assets Additions,IT Strategy,Capita Secure Information Solutions Ltd,93299442,"-6,805.60",PO 414917 FSA 317A CHARGES,SN14 0TW,Capital
Food Standards Agency,Food Standards Agency,28/03/2014,Programme Evidence & Research Expenditure,Agricultural Process & Environmental Contaminants & Strategy,Food & Environment Research Agency,C0006324,"-8,906.60",PO 415386 CREDIT INV F0034972,YO41 1LZ,Programme
Food Standards Agency,Food Standards Agency,26/03/2014,Fixed Assets Additions,IT Strategy,Capita Secure Information Solutions Ltd,93299442,"-28,327.57",PO 414917 FSA 317A CHARGES,SN14 0TW,Capital
Food Standards Agency,Food Standards Agency,28/03/2014,Programme Evidence & Research Expenditure,Agricultural Process & Environmental Contaminants & Strategy,Food & Environment Research Agency,C0006335,"-44,000.00",PO 417016 CR RE INV F0035085,YO41 1LZ,Programme
"Date Run: 23-APR-14 03.11.12 PM --- Company Code : '17' , Payment Start Date : '01-MAR-2014' , Payment End Date : '31-MAR-2014'",,,,,,,,,,
